{"text_format":"3","workbook":"xlsx","n_sheets":2,"sheets":["Impreso de Licencias","Resumen"],"not_rendered":{"images":2,"defined_names":1,"comments":1},"read":"whole","date_system":"1900"}

{"sheet":"Impreso de Licencias","index":0,"n_rows":50,"n_cols":25,"rows_kept":50,"merged":[[0,0,0,1],[0,3,0,4],[0,7,0,14],[1,2,1,3],[1,5,1,7],[1,18,1,20],[2,2,2,3],[3,5,3,7],[3,18,4,20],[4,5,5,9],[5,0,5,2],[5,18,5,20],[6,0,8,0],[6,1,8,1],[6,2,8,2],[6,3,8,3],[6,4,8,4],[6,5,8,5],[6,6,8,6],[6,7,8,7],[6,8,6,13],[6,14,8,14],[6,18,7,20],[7,8,7,10],[7,11,7,13],[8,15,8,17]]}
[{"$nulls":3},2021,null,"Firma y Sello del Club"]
[null,"CLUB O ENTIDAD: ",{"$nulls":3},{"$f":"IF(ISBLANK(A10),\"\",IF(CELL(\"contenido\",S4)<>\"\",CELL(\"contenido\",S4),CELL(\"contenido\",S6)))","v":""},{"$nulls":10},"Margen de fecha","Sexo (H/M)","Texto de errores"]
[null,"DOMICILIO CLUB: ",{"$f":"IF(C2=\"\",\"\",LOOKUP(C2,V26:V45,W26:W45))","v":""},{"$nulls":13},{"$f":"TODAY()","v":"2020-12-30"},"H"]
[null,"POBLACION:",{"$f":"IF(C2=\"\",\"\",LOOKUP(C2,V26:V45,Y26:Y45))","v":""},{"$f":"IF(C2=\"\",\"\",LOOKUP(C2,V26:V35,X26:X35))","v":""},null,{"$f":"IF(OR(C2=\"\",C3=\"\",C4=\"\",D4=\"\",C5=\"\"),\"Termina de rellenar la Cabecera\",\"\")","v":"Termina de rellenar la Cabecera"},{"$nulls":10},{"$f":"Q3-C5","v":"2020-12-30"},"M",{"$f":"IF(SUM(P10:P48)=\"\",\"\",IF(SUM(P10:P48)>=1,\"Introduce una sola opción\",\"\"))","v":""}]
[null,"FECHA:",{"$nulls":3},{"$f":"S7","v":""},{"$nulls":10},{"$f":"IF((Q4>15),1,\"\")","v":1}]
[{"$f":"IF(AND(Q5=1,Q6=1),\"Actualiza la fecha de la Cabecera\",\"\")","v":""},{"$nulls":15},{"$f":"IF((A10=\"\"),0,1)","v":0},null,{"$f":"IF(SUM(Q10:Q48)=\"\",\"\",IF(SUM(Q10:Q48)>=1,\"Has marcado varias opciones\",\"\"))","v":""}]
["DNI/NIF","NOMBRE","APELLIDOS","FECHA NAC.","SEXO (H/M)","DIRECCION","C.P.","POBLACION","LICENCIA",{"$nulls":5},"E-mail",{"$nulls":3},{"$f":"IF(SUM(R10:R48)=\"\",\"\",IF(SUM(R10:R48)<>0,\"Introduce la Fecha de Nacimiento\",\"\"))","v":""}]
[{"$nulls":8},"BASICA",null,null,"PLUS"]
[{"$nulls":8},"A","B","B1","A","B","B1",null,"Códigos de error",{"$nulls":3},{"$f":"IF((D26=\"\"),\"\",DATEDIF(D26,C5,\"Y\"))","v":""}]
[{"$nulls":15},{"$f":"IF(A10=\"\",\"\",IF(COUNTA(I10:N10)=0,1,\"\"))","v":""},{"$f":"IF(A10=\"\",\"\",IF(COUNTA(I10:N10)>1,1,\"\"))","v":""},{"$f":"IF(OR(ISBLANK(A10),ISBLANK(B10),ISBLANK(C10)),\"\",IF(ISBLANK(D10),1,\"\"))","v":""},null,{"$f":"IF((D10=\"\"),\"\",DATEDIF(D10,$C$5,\"Y\"))","v":""}]
[{"$nulls":15},"","",{"$f":"IF(OR(ISBLANK(A11),ISBLANK(B11),ISBLANK(#REF!)),\"\",IF(ISBLANK(D11),1,\"\"))","v":""},null,{"$f":"IF((D11=\"\"),\"\",DATEDIF(D11,$C$5,\"Y\"))","v":""}]
[{"$nulls":15},"","",{"$f":"IF(OR(ISBLANK(A12),ISBLANK(B12),ISBLANK(#REF!)),\"\",IF(ISBLANK(D12),1,\"\"))","v":""},null,""]
[{"$nulls":15},"","",{"$f":"IF(OR(ISBLANK(A13),ISBLANK(B13),ISBLANK(#REF!)),\"\",IF(ISBLANK(D13),1,\"\"))","v":""},null,""]
[{"$nulls":15},"","",{"$f":"IF(OR(ISBLANK(A14),ISBLANK(B14),ISBLANK(#REF!)),\"\",IF(ISBLANK(D14),1,\"\"))","v":""},null,""]
[{"$nulls":15},"","",{"$f":"IF(OR(ISBLANK(A15),ISBLANK(B15),ISBLANK(#REF!)),\"\",IF(ISBLANK(D15),1,\"\"))","v":""},null,""]
[{"$nulls":15},"","",{"$f":"IF(OR(ISBLANK(A16),ISBLANK(B16),ISBLANK(#REF!)),\"\",IF(ISBLANK(D16),1,\"\"))","v":""},null,""]
[{"$nulls":15},"","",{"$f":"IF(OR(ISBLANK(A17),ISBLANK(B17),ISBLANK(#REF!)),\"\",IF(ISBLANK(D17),1,\"\"))","v":""},null,""]
[{"$nulls":15},"","",{"$f":"IF(OR(ISBLANK(A18),ISBLANK(B18),ISBLANK(#REF!)),\"\",IF(ISBLANK(D18),1,\"\"))","v":""},null,""]
[{"$nulls":15},"","",{"$f":"IF(OR(ISBLANK(A19),ISBLANK(B19),ISBLANK(#REF!)),\"\",IF(ISBLANK(D19),1,\"\"))","v":""},null,""]
[{"$nulls":15},"","",{"$f":"IF(OR(ISBLANK(A20),ISBLANK(B20),ISBLANK(#REF!)),\"\",IF(ISBLANK(D20),1,\"\"))","v":""},null,""]
[{"$nulls":15},"","",{"$f":"IF(OR(ISBLANK(A21),ISBLANK(B21),ISBLANK(#REF!)),\"\",IF(ISBLANK(D21),1,\"\"))","v":""},null,""]
[{"$nulls":15},"","",{"$f":"IF(OR(ISBLANK(A22),ISBLANK(B22),ISBLANK(#REF!)),\"\",IF(ISBLANK(D22),1,\"\"))","v":""},null,""]
[{"$nulls":15},"","",{"$f":"IF(OR(ISBLANK(A23),ISBLANK(B23),ISBLANK(#REF!)),\"\",IF(ISBLANK(D23),1,\"\"))","v":""},null,""]
[{"$nulls":15},"","",{"$f":"IF(OR(ISBLANK(A24),ISBLANK(B24),ISBLANK(#REF!)),\"\",IF(ISBLANK(D24),1,\"\"))","v":""},null,"",null,"Listado de Grupos Cántabros"]
[{"$nulls":15},"","",{"$f":"IF(OR(ISBLANK(A25),ISBLANK(B25),ISBLANK(#REF!)),\"\",IF(ISBLANK(D25),1,\"\"))","v":""},null,""]
[{"$nulls":15},"","",{"$f":"IF(OR(ISBLANK(A26),ISBLANK(B26),ISBLANK(#REF!)),\"\",IF(ISBLANK(D26),1,\"\"))","v":""},null,"",null,"A.B.C. Deportiva Udías","C/ Las Escuelas,Nº 16",39507,"La Hayuela (Udías)"]
[{"$nulls":15},"","",{"$f":"IF(OR(ISBLANK(A27),ISBLANK(B27),ISBLANK(#REF!)),\"\",IF(ISBLANK(D27),1,\"\"))","v":""},null,"",null,"A.D. Espeleo y Montaña Colindres","C/ Heliodoro Fernández, Nº16, 2ª Planta Casa de los Maestros",39750,"Colindres"]
[{"$nulls":15},"","",{"$f":"IF(OR(ISBLANK(A28),ISBLANK(B28),ISBLANK(#REF!)),\"\",IF(ISBLANK(D28),1,\"\"))","v":""},null,"",null,"A.E.M. Trasmiera","C./ Alameda, 4 Bajos",39740,"Santoña"]
[{"$nulls":15},"","",{"$f":"IF(OR(ISBLANK(A29),ISBLANK(B29),ISBLANK(#REF!)),\"\",IF(ISBLANK(D29),1,\"\"))","v":""},null,"",null,"Asociación Deportiva Pico Tres Mares","Apartado de Correos Nº770",39080,"Santander"]
[{"$nulls":15},"","",{"$f":"IF(OR(ISBLANK(A30),ISBLANK(B30),ISBLANK(#REF!)),\"\",IF(ISBLANK(D30),1,\"\"))","v":""},null,"",null,"Asociación Espeleológica Ramaliega","Apartado de Correos Nº8",39800,"Ramales de la Victoria"]
[{"$nulls":15},"","",{"$f":"IF(OR(ISBLANK(A31),ISBLANK(B31),ISBLANK(#REF!)),\"\",IF(ISBLANK(D31),1,\"\"))","v":""},null,"",null,"Club Cántabro de Exploraciones Subterráneas","C./ Alday Nº1, 1º G",39600,"Maliaño"]
[{"$nulls":15},"","",{"$f":"IF(OR(ISBLANK(A32),ISBLANK(B32),ISBLANK(#REF!)),\"\",IF(ISBLANK(D32),1,\"\"))","v":""},null,"",null,"Club de Espeleología La Cambera","Bº La Iglesia, Nº31",39793,"Ribamontán al Monte (Cubas)"]
[{"$nulls":15},"","",{"$f":"IF(OR(ISBLANK(A33),ISBLANK(B33),ISBLANK(#REF!)),\"\",IF(ISBLANK(D33),1,\"\"))","v":""},null,"",null,"Club Deportivo Cota Mínima Cantabria","C/ Dos de Mayo, Nº4, 4º A",39400,"Los Corrales de Buelna"]
[{"$nulls":15},"","",{"$f":"IF(OR(ISBLANK(A34),ISBLANK(B34),ISBLANK(#REF!)),\"\",IF(ISBLANK(D34),1,\"\"))","v":""},null,"",null,"Club Deportivo Lábarum","Bº Real Sitio, Nº 5",39720,"La Cavada"]
[{"$nulls":15},"","",{"$f":"IF(OR(ISBLANK(A35),ISBLANK(B35),ISBLANK(#REF!)),\"\",IF(ISBLANK(D35),1,\"\"))","v":""},null,"",null,"Club Deportivo Ozono","Avda. Oviedo nº 20 – Bloque K Bajo",39710,"Solares"]
[{"$nulls":15},"","",{"$f":"IF(OR(ISBLANK(A36),ISBLANK(B36),ISBLANK(#REF!)),\"\",IF(ISBLANK(D36),1,\"\"))","v":""},null,"",null,"Club Montaña y Espeleología PROTEUS","Bº Calseca, 3",39728,"Ruesga"]
[{"$nulls":15},"","",{"$f":"IF(OR(ISBLANK(A37),ISBLANK(B37),ISBLANK(#REF!)),\"\",IF(ISBLANK(D37),1,\"\"))","v":""},null,"",null,"Espeleo Club Ábrigu","Urb. Ría del Pas, 210",39478,"Boo de Piélagos"]
[{"$nulls":15},"","",{"$f":"IF(OR(ISBLANK(A38),ISBLANK(B38),ISBLANK(#REF!)),\"\",IF(ISBLANK(D38),1,\"\"))","v":""},null,"",null,"G.E. Deportes Espeleo","Barrio el Mazo, Nº14",39800,"Ramales de la Victoria"]
[{"$nulls":15},"","",{"$f":"IF(OR(ISBLANK(A39),ISBLANK(B39),ISBLANK(#REF!)),\"\",IF(ISBLANK(D39),1,\"\"))","v":""},null,"",null,"G.E.S. del C.A. Tajahierro","C./ Rubio Nº2, 2º Izda.",39007,"Santander"]
[{"$nulls":15},"","",{"$f":"IF(OR(ISBLANK(A40),ISBLANK(B40),ISBLANK(#REF!)),\"\",IF(ISBLANK(D40),1,\"\"))","v":""},null,"",null,"Grupo de Espeleología La Lastrilla","Apartado de Correos Nº55",39700,"Castro Urdiales"]
[{"$nulls":15},"","",{"$f":"IF(OR(ISBLANK(A41),ISBLANK(B41),ISBLANK(#REF!)),\"\",IF(ISBLANK(D41),1,\"\"))","v":""},null,"",null,"Grupo de Espeleología Pistruellos","C/ General Dávila, Nº131, Nº3, 2º Izda.",39010,"Santander"]
[{"$nulls":15},"","",{"$f":"IF(OR(ISBLANK(A42),ISBLANK(B42),ISBLANK(#REF!)),\"\",IF(ISBLANK(D42),1,\"\"))","v":""},null,"",null,"S. de Act. Espeleo Cantabria","San Marrtín del Pino, Nº23 Portal 10, 1º Izda.",39011,"Santander"]
[{"$nulls":15},"","",{"$f":"IF(OR(ISBLANK(A43),ISBLANK(B43),ISBLANK(#REF!)),\"\",IF(ISBLANK(D43),1,\"\"))","v":""},null,"",null,"Sociedad Espeleológica Burnía","Barrio Villanueva, 134 A",39880,"Valle de Villlaverde"]
[{"$nulls":15},"","",{"$f":"IF(OR(ISBLANK(A44),ISBLANK(B44),ISBLANK(#REF!)),\"\",IF(ISBLANK(D44),1,\"\"))","v":""},null,"",null,"Sociedad Espeleológica Lenar","C/ Rufino Ruiz Ceballos, Nº9, 7º C",39600,"Maliaño"]
[{"$nulls":15},"","",{"$f":"IF(OR(ISBLANK(A45),ISBLANK(B45),ISBLANK(#REF!)),\"\",IF(ISBLANK(D45),1,\"\"))","v":""},null,"",null,"Speleo Club Cántabro","Colonia de Los Pinares, 7 Bajo B-7",39005,"Santander"]
[{"$nulls":15},"","",{"$f":"IF(OR(ISBLANK(A46),ISBLANK(B46),ISBLANK(#REF!)),\"\",IF(ISBLANK(D46),1,\"\"))","v":""},null,""]
[{"$nulls":15},"","",{"$f":"IF(OR(ISBLANK(A47),ISBLANK(B47),ISBLANK(#REF!)),\"\",IF(ISBLANK(D47),1,\"\"))","v":""},null,""]
[{"$nulls":15},"","",{"$f":"IF(OR(ISBLANK(A48),ISBLANK(B48),ISBLANK(#REF!)),\"\",IF(ISBLANK(D48),1,\"\"))","v":""},null,""]
[]
[{"$nulls":15},{"$f":"IF(#REF!=\"\",\"\",IF(COUNTA(#REF!)=0,1,\"\"))","v":{"$error":"#REF!"}},{"$f":"IF(#REF!=\"\",\"\",IF(COUNTA(#REF!)>1,1,\"\"))","v":{"$error":"#REF!"}}]

{"sheet":"Resumen","index":1,"n_rows":46,"n_cols":37,"rows_kept":46,"merged":[[0,1,0,3],[0,4,0,5],[0,20,1,23],[0,26,1,30],[1,1,1,3],[1,32,1,35],[2,1,3,1],[2,2,3,2],[2,3,3,3],[2,4,3,4],[2,5,3,5],[2,6,3,6],[2,7,3,7],[2,8,3,8],[2,9,3,9],[2,10,3,10],[2,11,3,16],[2,17,3,17],[2,32,2,35],[4,11,4,16],[4,32,4,36],[5,11,5,16],[5,32,6,36],[6,11,6,16],[7,11,7,16],[8,11,8,16],[8,32,8,36],[9,11,9,16],[9,32,10,36],[10,11,10,16],[10,20,10,22],[11,11,11,16],[11,20,11,22],[11,26,12,28],[11,29,12,30],[11,32,11,36],[12,11,12,16],[12,20,12,22],[12,32,12,36],[13,11,13,16],[13,26,14,30],[14,11,14,16],[14,20,15,25],[15,11,15,16],[16,11,16,16],[17,11,17,16],[18,11,18,16],[19,11,19,16],[20,11,20,16],[21,11,21,16],[22,11,22,16],[23,11,23,16],[24,11,24,16],[25,11,25,16],[26,11,26,16],[27,11,27,16],[28,11,28,16],[29,11,29,16],[30,11,30,16],[31,11,31,16],[32,11,32,16],[33,11,33,16],[34,11,34,16],[35,11,35,16],[36,11,36,16],[37,11,37,16],[38,11,38,16],[39,11,39,16],[40,11,40,16],[41,11,41,16],[42,11,42,16],[43,11,43,16],[44,11,44,16],[45,11,45,16]]}
[null,"LISTADO DE FEDERADOS ",null,null," Fecha del informe",null,{"$f":"'Impreso de Licencias'!C5","v":"00:00:00"},{"$nulls":13},{"$f":"CONCATENATE(\"Precio de las Licencias \",'Impreso de Licencias'!D1)","v":"Precio de las Licencias 2021"},{"$nulls":5},"Desglose de mis licencias"]
[null," Licencias expedidas desde ",{"$nulls":3}," hasta ",{"$nulls":26},"Total a Ingresar ……………….………",{"$nulls":3},{"$f":"(AC4*V4)+(AD4*W4)+(AE4*X4)+(AC5*V5)+(AD5*W5)+(AE5*X5)+(AC6*V6)+(AD6*W6)+(AE6*X6)+(AC7*V7)+(AD7*W7)+(AE7*X7)+(AC8*V8)+(AD8*W8)+(AE8*X8)+(AC9*V9)+(AD9*W9)+(AE9*X9)","v":{"v":0,"d":"0 €"}}]
[null,"D.N.I.","Nombre","Apellidos","Fecha Nacimiento","Fecha Expedición","Categoria","Tipo de licencia","Dirección","C.P.","Población","Entidad Deportiva",{"$nulls":5},"SEXO (H/M)",{"$nulls":3},"Mayores   (> 18 años)","Juveniles (14 a 17 años)","Infantiles (hasta 13 años)",{"$nulls":4},"Mayor","Juvenil","Infantil"]
[{"$nulls":20},"Básica A",{"v":44,"d":"44 €"},{"v":20,"d":"20 €"},{"v":15,"d":"15 €"},null,null,"Licencias Básica A",null,{"$f":"SUMPRODUCT((Resumen!H5:H46=\"Básica A\")*(G5:G46=\"Mayor\")*1)","v":0},{"$f":"SUMPRODUCT((H5:H46=\"Básica A\")*(G5:G46=\"Juvenil\")*1)","v":0},{"$f":"SUMPRODUCT((H5:H46=\"Básica A\")*(G5:G46=\"Infantil\")*1)","v":0}]
[null,{"$f":"IF('Impreso de Licencias'!A10=\"\",\"\",CELL(\"contenido\",'Impreso de Licencias'!A10))","v":""},{"$f":"IF('Impreso de Licencias'!A10=\"\",\"\",PROPER((CELL(\"contenido\",'Impreso de Licencias'!B10))))","v":""},{"$f":"IF('Impreso de Licencias'!A10=\"\",\"\",PROPER((CELL(\"contenido\",'Impreso de Licencias'!C10))))","v":""},{"$f":"IF('Impreso de Licencias'!A10=\"\",\"\",CELL(\"contenido\",'Impreso de Licencias'!D10))","v":""},{"$f":"IF(B5=\"\",\"\",IF($G$1=\"\",\"\",$G$1))","v":""},{"$f":"IF(B5=\"\",\"\",IF('Impreso de Licencias'!T10>=18,\"Mayor\",IF('Impreso de Licencias'!T10>=14,\"Juvenil\",\"Infantil\")))","v":""},{"$f":"IF(B5=\"\",\"\",IF(MATCH(\"X\",'Impreso de Licencias'!I10:N10,0)=1,\"Básica A\",IF(MATCH(\"X\",'Impreso de Licencias'!I10:N10,0)=2,\"Básica B\",IF(MATCH(\"X\",'Impreso de Licencias'!I10:N10,0)=3,\"Básica B1\",IF(MATCH(\"X\",'Impreso de Licencias'!I10:N10,0)=4,\"Plus A\",IF(MATCH(\"X\",'Impreso de Licencias'!I10:N10,0)=5,\"Plus B\",IF(MATCH(\"X\",'Impreso de Licencias'!I10:N10,0)=6,\"Plus B1\")))))))","v":""},{"$f":"IF('Impreso de Licencias'!A10=\"\",\"\",PROPER((CELL(\"contenido\",'Impreso de Licencias'!F10))))","v":""},{"$f":"IF('Impreso de Licencias'!A10=\"\",\"\",CELL(\"contenido\",'Impreso de Licencias'!G10))","v":""},{"$f":"IF('Impreso de Licencias'!A10=\"\",\"\",PROPER((CELL(\"contenido\",'Impreso de Licencias'!H10))))","v":""},{"$f":"IF('Impreso de Licencias'!A10=\"\",\"\",'Impreso de Licencias'!$C$2)","v":""},{"$nulls":5},{"$f":"IF('Impreso de Licencias'!A10=\"\",\"\",PROPER((CELL(\"contenido\",'Impreso de Licencias'!E10))))","v":""},null,null,"Básica B",{"v":58,"d":"58 €"},{"v":33,"d":"33 €"},{"v":28,"d":"28 €"},null,null,"Licencias Básica B",null,{"$f":"SUMPRODUCT((H5:H46=\"Básica B\")*(G5:G46=\"Mayor\")*1)","v":0},{"$f":"SUMPRODUCT((H5:H46=\"Básica B\")*(G5:G46=\"Juvenil\")*1)","v":0},{"$f":"SUMPRODUCT((H5:H46=\"Básica B\")*(G5:G46=\"Infantil\")*1)","v":0},null,"Ingresar en LIBERBANK (Caja Cantabria)"]
[null,{"$f":"IF('Impreso de Licencias'!A11=\"\",\"\",CELL(\"contenido\",'Impreso de Licencias'!A11))","v":""},{"$f":"IF('Impreso de Licencias'!A11=\"\",\"\",PROPER((CELL(\"contenido\",'Impreso de Licencias'!B11))))","v":""},{"$f":"IF('Impreso de Licencias'!A11=\"\",\"\",PROPER((CELL(\"contenido\",'Impreso de Licencias'!C11))))","v":""},{"$f":"IF('Impreso de Licencias'!A11=\"\",\"\",CELL(\"contenido\",'Impreso de Licencias'!D11))","v":""},{"$f":"IF(B6=\"\",\"\",IF($G$1=\"\",\"\",$G$1))","v":""},{"$f":"IF(B6=\"\",\"\",IF('Impreso de Licencias'!T11>=18,\"Mayor\",IF('Impreso de Licencias'!T11>=14,\"Juvenil\",\"Infantil\")))","v":""},{"$f":"IF(B6=\"\",\"\",IF(MATCH(\"X\",'Impreso de Licencias'!I11:N11,0)=1,\"Básica A\",IF(MATCH(\"X\",'Impreso de Licencias'!I11:N11,0)=2,\"Básica B\",IF(MATCH(\"X\",'Impreso de Licencias'!I11:N11,0)=3,\"Básica B1\",IF(MATCH(\"X\",'Impreso de Licencias'!I11:N11,0)=4,\"Plus A\",IF(MATCH(\"X\",'Impreso de Licencias'!I11:N11,0)=5,\"Plus B\",IF(MATCH(\"X\",'Impreso de Licencias'!I11:N11,0)=6,\"Plus B1\")))))))","v":""},{"$f":"IF('Impreso de Licencias'!A11=\"\",\"\",PROPER((CELL(\"contenido\",'Impreso de Licencias'!F11))))","v":""},{"$f":"IF('Impreso de Licencias'!A11=\"\",\"\",CELL(\"contenido\",'Impreso de Licencias'!G11))","v":""},{"$f":"IF('Impreso de Licencias'!A11=\"\",\"\",PROPER((CELL(\"contenido\",'Impreso de Licencias'!H11))))","v":""},{"$f":"IF('Impreso de Licencias'!A11=\"\",\"\",'Impreso de Licencias'!$C$2)","v":""},{"$nulls":5},{"$f":"IF('Impreso de Licencias'!A11=\"\",\"\",PROPER((CELL(\"contenido\",'Impreso de Licencias'!E11))))","v":""},null,null,"Básica B1",{"v":72,"d":"72 €"},{"v":65,"d":"65 €"},{"v":58,"d":"58 €"},null,null,"Licencias Básica B1",null,{"$f":"SUMPRODUCT((H5:H46=\"Básica B1\")*(G5:G46=\"Mayor\")*1)","v":0},{"$f":"SUMPRODUCT((H5:H46=\"Básica B1\")*(G5:G46=\"Juvenil\")*1)","v":0},{"$f":"SUMPRODUCT((H5:H46=\"Básica B1\")*(G5:G46=\"Infantil\")*1)","v":0},null,"ES58 2048 2015 6634 0003 1431"]
[null,{"$f":"IF('Impreso de Licencias'!A12=\"\",\"\",CELL(\"contenido\",'Impreso de Licencias'!A12))","v":""},{"$f":"IF('Impreso de Licencias'!A12=\"\",\"\",PROPER((CELL(\"contenido\",'Impreso de Licencias'!B12))))","v":""},{"$f":"IF('Impreso de Licencias'!A12=\"\",\"\",PROPER((CELL(\"contenido\",'Impreso de Licencias'!C12))))","v":""},{"$f":"IF('Impreso de Licencias'!A12=\"\",\"\",CELL(\"contenido\",'Impreso de Licencias'!D12))","v":""},"",{"$f":"IF(B7=\"\",\"\",IF('Impreso de Licencias'!T12>=18,\"Mayor\",IF('Impreso de Licencias'!T12>=14,\"Juvenil\",\"Infantil\")))","v":""},{"$f":"IF(B7=\"\",\"\",IF(MATCH(\"X\",'Impreso de Licencias'!I12:N12,0)=1,\"Básica A\",IF(MATCH(\"X\",'Impreso de Licencias'!I12:N12,0)=2,\"Básica B\",IF(MATCH(\"X\",'Impreso de Licencias'!I12:N12,0)=3,\"Básica B1\",IF(MATCH(\"X\",'Impreso de Licencias'!I12:N12,0)=4,\"Plus A\",IF(MATCH(\"X\",'Impreso de Licencias'!I12:N12,0)=5,\"Plus B\",IF(MATCH(\"X\",'Impreso de Licencias'!I12:N12,0)=6,\"Plus B1\")))))))","v":""},{"$f":"IF('Impreso de Licencias'!A12=\"\",\"\",PROPER((CELL(\"contenido\",'Impreso de Licencias'!F12))))","v":""},{"$f":"IF('Impreso de Licencias'!A12=\"\",\"\",CELL(\"contenido\",'Impreso de Licencias'!G12))","v":""},{"$f":"IF('Impreso de Licencias'!A12=\"\",\"\",PROPER((CELL(\"contenido\",'Impreso de Licencias'!H12))))","v":""},{"$f":"IF('Impreso de Licencias'!A12=\"\",\"\",'Impreso de Licencias'!$C$2)","v":""},{"$nulls":5},{"$f":"IF('Impreso de Licencias'!A12=\"\",\"\",PROPER((CELL(\"contenido\",'Impreso de Licencias'!E12))))","v":""},null,null,"Plus A",{"v":82,"d":"82 €"},{"v":67,"d":"67 €"},{"v":60,"d":"60 €"},null,null,"Licencias Plus A",null,{"$f":"SUMPRODUCT((H5:H46=\"Plus A\")*(G5:G46=\"Mayor\")*1)","v":0},{"$f":"SUMPRODUCT((H5:H46=\"Plus A\")*(G5:G46=\"Juvenil\")*1)","v":0},{"$f":"SUMPRODUCT((H5:H46=\"Plus A\")*(G5:G46=\"Infantil\")*1)","v":0}]
[null,{"$f":"IF('Impreso de Licencias'!A13=\"\",\"\",CELL(\"contenido\",'Impreso de Licencias'!A13))","v":""},{"$f":"IF('Impreso de Licencias'!A13=\"\",\"\",PROPER((CELL(\"contenido\",'Impreso de Licencias'!B13))))","v":""},{"$f":"IF('Impreso de Licencias'!A13=\"\",\"\",PROPER((CELL(\"contenido\",'Impreso de Licencias'!C13))))","v":""},{"$f":"IF('Impreso de Licencias'!A13=\"\",\"\",CELL(\"contenido\",'Impreso de Licencias'!D13))","v":""},"",{"$f":"IF(B8=\"\",\"\",IF('Impreso de Licencias'!T13>=18,\"Mayor\",IF('Impreso de Licencias'!T13>=14,\"Juvenil\",\"Infantil\")))","v":""},{"$f":"IF(B8=\"\",\"\",IF(MATCH(\"X\",'Impreso de Licencias'!I13:N13,0)=1,\"Básica A\",IF(MATCH(\"X\",'Impreso de Licencias'!I13:N13,0)=2,\"Básica B\",IF(MATCH(\"X\",'Impreso de Licencias'!I13:N13,0)=3,\"Básica B1\",IF(MATCH(\"X\",'Impreso de Licencias'!I13:N13,0)=4,\"Plus A\",IF(MATCH(\"X\",'Impreso de Licencias'!I13:N13,0)=5,\"Plus B\",IF(MATCH(\"X\",'Impreso de Licencias'!I13:N13,0)=6,\"Plus B1\")))))))","v":""},{"$f":"IF('Impreso de Licencias'!A13=\"\",\"\",PROPER((CELL(\"contenido\",'Impreso de Licencias'!F13))))","v":""},{"$f":"IF('Impreso de Licencias'!A13=\"\",\"\",CELL(\"contenido\",'Impreso de Licencias'!G13))","v":""},{"$f":"IF('Impreso de Licencias'!A13=\"\",\"\",PROPER((CELL(\"contenido\",'Impreso de Licencias'!H13))))","v":""},{"$f":"IF('Impreso de Licencias'!A13=\"\",\"\",'Impreso de Licencias'!$C$2)","v":""},{"$nulls":5},{"$f":"IF('Impreso de Licencias'!A13=\"\",\"\",PROPER((CELL(\"contenido\",'Impreso de Licencias'!E13))))","v":""},null,null,"Plus B",{"v":89,"d":"89 €"},{"v":74,"d":"74 €"},{"v":65,"d":"65 €"},null,null,"Licencias Plus B",null,{"$f":"SUMPRODUCT((H5:H46=\"Plus B\")*(G5:G46=\"Mayor\")*1)","v":0},{"$f":"SUMPRODUCT((H5:H46=\"Plus B\")*(G5:G46=\"Juvenil\")*1)","v":0},{"$f":"SUMPRODUCT((H5:H46=\"Plus B\")*(G5:G46=\"Infantil\")*1)","v":0}]
[null,{"$f":"IF('Impreso de Licencias'!A14=\"\",\"\",CELL(\"contenido\",'Impreso de Licencias'!A14))","v":""},{"$f":"IF('Impreso de Licencias'!A14=\"\",\"\",PROPER((CELL(\"contenido\",'Impreso de Licencias'!B14))))","v":""},{"$f":"IF('Impreso de Licencias'!A14=\"\",\"\",PROPER((CELL(\"contenido\",'Impreso de Licencias'!C14))))","v":""},{"$f":"IF('Impreso de Licencias'!A14=\"\",\"\",CELL(\"contenido\",'Impreso de Licencias'!D14))","v":""},"",{"$f":"IF(B9=\"\",\"\",IF('Impreso de Licencias'!T14>=18,\"Mayor\",IF('Impreso de Licencias'!T14>=14,\"Juvenil\",\"Infantil\")))","v":""},{"$f":"IF(B9=\"\",\"\",IF(MATCH(\"X\",'Impreso de Licencias'!I14:N14,0)=1,\"Básica A\",IF(MATCH(\"X\",'Impreso de Licencias'!I14:N14,0)=2,\"Básica B\",IF(MATCH(\"X\",'Impreso de Licencias'!I14:N14,0)=3,\"Básica B1\",IF(MATCH(\"X\",'Impreso de Licencias'!I14:N14,0)=4,\"Plus A\",IF(MATCH(\"X\",'Impreso de Licencias'!I14:N14,0)=5,\"Plus B\",IF(MATCH(\"X\",'Impreso de Licencias'!I14:N14,0)=6,\"Plus B1\")))))))","v":""},{"$f":"IF('Impreso de Licencias'!A14=\"\",\"\",PROPER((CELL(\"contenido\",'Impreso de Licencias'!F14))))","v":""},{"$f":"IF('Impreso de Licencias'!A14=\"\",\"\",CELL(\"contenido\",'Impreso de Licencias'!G14))","v":""},{"$f":"IF('Impreso de Licencias'!A14=\"\",\"\",PROPER((CELL(\"contenido\",'Impreso de Licencias'!H14))))","v":""},{"$f":"IF('Impreso de Licencias'!A14=\"\",\"\",'Impreso de Licencias'!$C$2)","v":""},{"$nulls":5},{"$f":"IF('Impreso de Licencias'!A14=\"\",\"\",PROPER((CELL(\"contenido\",'Impreso de Licencias'!E14))))","v":""},null,null,"Plus B1",{"v":126,"d":"126 €"},{"v":118,"d":"118 €"},{"v":115,"d":"115 €"},null,null,"Licencias Plus B1",null,{"$f":"SUMPRODUCT((H5:H46=\"Plus B1\")*(G5:G46=\"Mayor\")*1)","v":0},{"$f":"SUMPRODUCT((H5:H46=\"Plus B1\")*(G5:G46=\"Juvenil\")*1)","v":0},{"$f":"SUMPRODUCT((H5:H46=\"Plus B1\")*(G5:G46=\"Infantil\")*1)","v":0},null,"Enviar archivo y justificante del pago a la dirección"]
[null,{"$f":"IF('Impreso de Licencias'!A15=\"\",\"\",CELL(\"contenido\",'Impreso de Licencias'!A15))","v":""},{"$f":"IF('Impreso de Licencias'!A15=\"\",\"\",PROPER((CELL(\"contenido\",'Impreso de Licencias'!B15))))","v":""},{"$f":"IF('Impreso de Licencias'!A15=\"\",\"\",PROPER((CELL(\"contenido\",'Impreso de Licencias'!C15))))","v":""},{"$f":"IF('Impreso de Licencias'!A15=\"\",\"\",CELL(\"contenido\",'Impreso de Licencias'!D15))","v":""},"",{"$f":"IF(B10=\"\",\"\",IF('Impreso de Licencias'!T15>=18,\"Mayor\",IF('Impreso de Licencias'!T15>=14,\"Juvenil\",\"Infantil\")))","v":""},{"$f":"IF(B10=\"\",\"\",IF(MATCH(\"X\",'Impreso de Licencias'!I15:N15,0)=1,\"Básica A\",IF(MATCH(\"X\",'Impreso de Licencias'!I15:N15,0)=2,\"Básica B\",IF(MATCH(\"X\",'Impreso de Licencias'!I15:N15,0)=3,\"Básica B1\",IF(MATCH(\"X\",'Impreso de Licencias'!I15:N15,0)=4,\"Plus A\",IF(MATCH(\"X\",'Impreso de Licencias'!I15:N15,0)=5,\"Plus B\",IF(MATCH(\"X\",'Impreso de Licencias'!I15:N15,0)=6,\"Plus B1\")))))))","v":""},{"$f":"IF('Impreso de Licencias'!A15=\"\",\"\",PROPER((CELL(\"contenido\",'Impreso de Licencias'!F15))))","v":""},{"$f":"IF('Impreso de Licencias'!A15=\"\",\"\",CELL(\"contenido\",'Impreso de Licencias'!G15))","v":""},{"$f":"IF('Impreso de Licencias'!A15=\"\",\"\",PROPER((CELL(\"contenido\",'Impreso de Licencias'!H15))))","v":""},{"$f":"IF('Impreso de Licencias'!A15=\"\",\"\",'Impreso de Licencias'!$C$2)","v":""},{"$nulls":5},{"$f":"IF('Impreso de Licencias'!A15=\"\",\"\",PROPER((CELL(\"contenido\",'Impreso de Licencias'!E15))))","v":""},{"$nulls":14},"licencias@espeleocantabria.net"]
[null,{"$f":"IF('Impreso de Licencias'!A16=\"\",\"\",CELL(\"contenido\",'Impreso de Licencias'!A16))","v":""},{"$f":"IF('Impreso de Licencias'!A16=\"\",\"\",PROPER((CELL(\"contenido\",'Impreso de Licencias'!B16))))","v":""},{"$f":"IF('Impreso de Licencias'!A16=\"\",\"\",PROPER((CELL(\"contenido\",'Impreso de Licencias'!C16))))","v":""},{"$f":"IF('Impreso de Licencias'!A16=\"\",\"\",CELL(\"contenido\",'Impreso de Licencias'!D16))","v":""},"",{"$f":"IF(B11=\"\",\"\",IF('Impreso de Licencias'!T16>=18,\"Mayor\",IF('Impreso de Licencias'!T16>=14,\"Juvenil\",\"Infantil\")))","v":""},{"$f":"IF(B11=\"\",\"\",IF(MATCH(\"X\",'Impreso de Licencias'!I16:N16,0)=1,\"Básica A\",IF(MATCH(\"X\",'Impreso de Licencias'!I16:N16,0)=2,\"Básica B\",IF(MATCH(\"X\",'Impreso de Licencias'!I16:N16,0)=3,\"Básica B1\",IF(MATCH(\"X\",'Impreso de Licencias'!I16:N16,0)=4,\"Plus A\",IF(MATCH(\"X\",'Impreso de Licencias'!I16:N16,0)=5,\"Plus B\",IF(MATCH(\"X\",'Impreso de Licencias'!I16:N16,0)=6,\"Plus B1\")))))))","v":""},{"$f":"IF('Impreso de Licencias'!A16=\"\",\"\",PROPER((CELL(\"contenido\",'Impreso de Licencias'!F16))))","v":""},{"$f":"IF('Impreso de Licencias'!A16=\"\",\"\",CELL(\"contenido\",'Impreso de Licencias'!G16))","v":""},{"$f":"IF('Impreso de Licencias'!A16=\"\",\"\",PROPER((CELL(\"contenido\",'Impreso de Licencias'!H16))))","v":""},{"$f":"IF('Impreso de Licencias'!A16=\"\",\"\",'Impreso de Licencias'!$C$2)","v":""},{"$nulls":5},{"$f":"IF('Impreso de Licencias'!A16=\"\",\"\",PROPER((CELL(\"contenido\",'Impreso de Licencias'!E16))))","v":""},null,null,"Licencias de fin de semana (3 días)",null,null,{"v":12,"d":"12 €"}]
[null,{"$f":"IF('Impreso de Licencias'!A17=\"\",\"\",CELL(\"contenido\",'Impreso de Licencias'!A17))","v":""},{"$f":"IF('Impreso de Licencias'!A17=\"\",\"\",PROPER((CELL(\"contenido\",'Impreso de Licencias'!B17))))","v":""},{"$f":"IF('Impreso de Licencias'!A17=\"\",\"\",PROPER((CELL(\"contenido\",'Impreso de Licencias'!C17))))","v":""},{"$f":"IF('Impreso de Licencias'!A17=\"\",\"\",CELL(\"contenido\",'Impreso de Licencias'!D17))","v":""},"",{"$f":"IF(B12=\"\",\"\",IF('Impreso de Licencias'!T17>=18,\"Mayor\",IF('Impreso de Licencias'!T17>=14,\"Juvenil\",\"Infantil\")))","v":""},{"$f":"IF(B12=\"\",\"\",IF(MATCH(\"X\",'Impreso de Licencias'!I17:N17,0)=1,\"Básica A\",IF(MATCH(\"X\",'Impreso de Licencias'!I17:N17,0)=2,\"Básica B\",IF(MATCH(\"X\",'Impreso de Licencias'!I17:N17,0)=3,\"Básica B1\",IF(MATCH(\"X\",'Impreso de Licencias'!I17:N17,0)=4,\"Plus A\",IF(MATCH(\"X\",'Impreso de Licencias'!I17:N17,0)=5,\"Plus B\",IF(MATCH(\"X\",'Impreso de Licencias'!I17:N17,0)=6,\"Plus B1\")))))))","v":""},{"$f":"IF('Impreso de Licencias'!A17=\"\",\"\",PROPER((CELL(\"contenido\",'Impreso de Licencias'!F17))))","v":""},{"$f":"IF('Impreso de Licencias'!A17=\"\",\"\",CELL(\"contenido\",'Impreso de Licencias'!G17))","v":""},{"$f":"IF('Impreso de Licencias'!A17=\"\",\"\",PROPER((CELL(\"contenido\",'Impreso de Licencias'!H17))))","v":""},{"$f":"IF('Impreso de Licencias'!A17=\"\",\"\",'Impreso de Licencias'!$C$2)","v":""},{"$nulls":5},{"$f":"IF('Impreso de Licencias'!A17=\"\",\"\",PROPER((CELL(\"contenido\",'Impreso de Licencias'!E17))))","v":""},null,null,"Cuota de Club*",null,null,{"v":30,"d":"30 €"},null,null,"Total federados",null,null,{"$f":"AC4+AD4+AE4+AC5+AD5+AE5+AC6+AD6+AE6+AC7+AD7+AE7+AC8+AD8+AE8+AC9+AD9+AE9","v":0},null,null,"Enviar el archivo con el nombre:"]
[null,{"$f":"IF('Impreso de Licencias'!A18=\"\",\"\",CELL(\"contenido\",'Impreso de Licencias'!A18))","v":""},{"$f":"IF('Impreso de Licencias'!A18=\"\",\"\",PROPER((CELL(\"contenido\",'Impreso de Licencias'!B18))))","v":""},{"$f":"IF('Impreso de Licencias'!A18=\"\",\"\",PROPER((CELL(\"contenido\",'Impreso de Licencias'!C18))))","v":""},{"$f":"IF('Impreso de Licencias'!A18=\"\",\"\",CELL(\"contenido\",'Impreso de Licencias'!D18))","v":""},"",{"$f":"IF(B13=\"\",\"\",IF('Impreso de Licencias'!T18>=18,\"Mayor\",IF('Impreso de Licencias'!T18>=14,\"Juvenil\",\"Infantil\")))","v":""},{"$f":"IF(B13=\"\",\"\",IF(MATCH(\"X\",'Impreso de Licencias'!I18:N18,0)=1,\"Básica A\",IF(MATCH(\"X\",'Impreso de Licencias'!I18:N18,0)=2,\"Básica B\",IF(MATCH(\"X\",'Impreso de Licencias'!I18:N18,0)=3,\"Básica B1\",IF(MATCH(\"X\",'Impreso de Licencias'!I18:N18,0)=4,\"Plus A\",IF(MATCH(\"X\",'Impreso de Licencias'!I18:N18,0)=5,\"Plus B\",IF(MATCH(\"X\",'Impreso de Licencias'!I18:N18,0)=6,\"Plus B1\")))))))","v":""},{"$f":"IF('Impreso de Licencias'!A18=\"\",\"\",PROPER((CELL(\"contenido\",'Impreso de Licencias'!F18))))","v":""},{"$f":"IF('Impreso de Licencias'!A18=\"\",\"\",CELL(\"contenido\",'Impreso de Licencias'!G18))","v":""},{"$f":"IF('Impreso de Licencias'!A18=\"\",\"\",PROPER((CELL(\"contenido\",'Impreso de Licencias'!H18))))","v":""},{"$f":"IF('Impreso de Licencias'!A18=\"\",\"\",'Impreso de Licencias'!$C$2)","v":""},{"$nulls":5},{"$f":"IF('Impreso de Licencias'!A18=\"\",\"\",PROPER((CELL(\"contenido\",'Impreso de Licencias'!E18))))","v":""},null,null,"Otoñal (septiembre a diciembre) Cursos",null,null,{"v":28,"d":"28 €"},{"$nulls":8}," LICENCIAS_migrupo_01 / 02 /…"]
[null,{"$f":"IF('Impreso de Licencias'!A19=\"\",\"\",CELL(\"contenido\",'Impreso de Licencias'!A19))","v":""},{"$f":"IF('Impreso de Licencias'!A19=\"\",\"\",PROPER((CELL(\"contenido\",'Impreso de Licencias'!B19))))","v":""},{"$f":"IF('Impreso de Licencias'!A19=\"\",\"\",PROPER((CELL(\"contenido\",'Impreso de Licencias'!C19))))","v":""},{"$f":"IF('Impreso de Licencias'!A19=\"\",\"\",CELL(\"contenido\",'Impreso de Licencias'!D19))","v":""},"",{"$f":"IF(B14=\"\",\"\",IF('Impreso de Licencias'!T19>=18,\"Mayor\",IF('Impreso de Licencias'!T19>=14,\"Juvenil\",\"Infantil\")))","v":""},{"$f":"IF(B14=\"\",\"\",IF(MATCH(\"X\",'Impreso de Licencias'!I19:N19,0)=1,\"Básica A\",IF(MATCH(\"X\",'Impreso de Licencias'!I19:N19,0)=2,\"Básica B\",IF(MATCH(\"X\",'Impreso de Licencias'!I19:N19,0)=3,\"Básica B1\",IF(MATCH(\"X\",'Impreso de Licencias'!I19:N19,0)=4,\"Plus A\",IF(MATCH(\"X\",'Impreso de Licencias'!I19:N19,0)=5,\"Plus B\",IF(MATCH(\"X\",'Impreso de Licencias'!I19:N19,0)=6,\"Plus B1\")))))))","v":""},{"$f":"IF('Impreso de Licencias'!A19=\"\",\"\",PROPER((CELL(\"contenido\",'Impreso de Licencias'!F19))))","v":""},{"$f":"IF('Impreso de Licencias'!A19=\"\",\"\",CELL(\"contenido\",'Impreso de Licencias'!G19))","v":""},{"$f":"IF('Impreso de Licencias'!A19=\"\",\"\",PROPER((CELL(\"contenido\",'Impreso de Licencias'!H19))))","v":""},{"$f":"IF('Impreso de Licencias'!A19=\"\",\"\",'Impreso de Licencias'!$C$2)","v":""},{"$nulls":5},{"$f":"IF('Impreso de Licencias'!A19=\"\",\"\",PROPER((CELL(\"contenido\",'Impreso de Licencias'!E19))))","v":""},{"$nulls":8},{"$f":"IF(ISNA(AC4),\"Revisa el impreso de Licencias está incompleto\",\"\")","v":""}]
[null,{"$f":"IF('Impreso de Licencias'!A20=\"\",\"\",CELL(\"contenido\",'Impreso de Licencias'!A20))","v":""},{"$f":"IF('Impreso de Licencias'!A20=\"\",\"\",PROPER((CELL(\"contenido\",'Impreso de Licencias'!B20))))","v":""},{"$f":"IF('Impreso de Licencias'!A20=\"\",\"\",PROPER((CELL(\"contenido\",'Impreso de Licencias'!C20))))","v":""},{"$f":"IF('Impreso de Licencias'!A20=\"\",\"\",CELL(\"contenido\",'Impreso de Licencias'!D20))","v":""},"",{"$f":"IF(B15=\"\",\"\",IF('Impreso de Licencias'!T20>=18,\"Mayor\",IF('Impreso de Licencias'!T20>=14,\"Juvenil\",\"Infantil\")))","v":""},{"$f":"IF(B15=\"\",\"\",IF(MATCH(\"X\",'Impreso de Licencias'!I20:N20,0)=1,\"Básica A\",IF(MATCH(\"X\",'Impreso de Licencias'!I20:N20,0)=2,\"Básica B\",IF(MATCH(\"X\",'Impreso de Licencias'!I20:N20,0)=3,\"Básica B1\",IF(MATCH(\"X\",'Impreso de Licencias'!I20:N20,0)=4,\"Plus A\",IF(MATCH(\"X\",'Impreso de Licencias'!I20:N20,0)=5,\"Plus B\",IF(MATCH(\"X\",'Impreso de Licencias'!I20:N20,0)=6,\"Plus B1\")))))))","v":""},{"$f":"IF('Impreso de Licencias'!A20=\"\",\"\",PROPER((CELL(\"contenido\",'Impreso de Licencias'!F20))))","v":""},{"$f":"IF('Impreso de Licencias'!A20=\"\",\"\",CELL(\"contenido\",'Impreso de Licencias'!G20))","v":""},{"$f":"IF('Impreso de Licencias'!A20=\"\",\"\",PROPER((CELL(\"contenido\",'Impreso de Licencias'!H20))))","v":""},{"$f":"IF('Impreso de Licencias'!A20=\"\",\"\",'Impreso de Licencias'!$C$2)","v":""},{"$nulls":5},{"$f":"IF('Impreso de Licencias'!A20=\"\",\"\",PROPER((CELL(\"contenido\",'Impreso de Licencias'!E20))))","v":""},null,null,"*La cuota de club se debe ingresar por separado por transferencia a la cuenta de la FCE"]
[null,{"$f":"IF('Impreso de Licencias'!A21=\"\",\"\",CELL(\"contenido\",'Impreso de Licencias'!A21))","v":""},{"$f":"IF('Impreso de Licencias'!A21=\"\",\"\",PROPER((CELL(\"contenido\",'Impreso de Licencias'!B21))))","v":""},{"$f":"IF('Impreso de Licencias'!A21=\"\",\"\",PROPER((CELL(\"contenido\",'Impreso de Licencias'!C21))))","v":""},{"$f":"IF('Impreso de Licencias'!A21=\"\",\"\",CELL(\"contenido\",'Impreso de Licencias'!D21))","v":""},"",{"$f":"IF(B16=\"\",\"\",IF('Impreso de Licencias'!T21>=18,\"Mayor\",IF('Impreso de Licencias'!T21>=14,\"Juvenil\",\"Infantil\")))","v":""},{"$f":"IF(B16=\"\",\"\",IF(MATCH(\"X\",'Impreso de Licencias'!I21:N21,0)=1,\"Básica A\",IF(MATCH(\"X\",'Impreso de Licencias'!I21:N21,0)=2,\"Básica B\",IF(MATCH(\"X\",'Impreso de Licencias'!I21:N21,0)=3,\"Básica B1\",IF(MATCH(\"X\",'Impreso de Licencias'!I21:N21,0)=4,\"Plus A\",IF(MATCH(\"X\",'Impreso de Licencias'!I21:N21,0)=5,\"Plus B\",IF(MATCH(\"X\",'Impreso de Licencias'!I21:N21,0)=6,\"Plus B1\")))))))","v":""},{"$f":"IF('Impreso de Licencias'!A21=\"\",\"\",PROPER((CELL(\"contenido\",'Impreso de Licencias'!F21))))","v":""},{"$f":"IF('Impreso de Licencias'!A21=\"\",\"\",CELL(\"contenido\",'Impreso de Licencias'!G21))","v":""},{"$f":"IF('Impreso de Licencias'!A21=\"\",\"\",PROPER((CELL(\"contenido\",'Impreso de Licencias'!H21))))","v":""},{"$f":"IF('Impreso de Licencias'!A21=\"\",\"\",'Impreso de Licencias'!$C$2)","v":""},{"$nulls":5},{"$f":"IF('Impreso de Licencias'!A21=\"\",\"\",PROPER((CELL(\"contenido\",'Impreso de Licencias'!E21))))","v":""}]
[null,{"$f":"IF('Impreso de Licencias'!A22=\"\",\"\",CELL(\"contenido\",'Impreso de Licencias'!A22))","v":""},{"$f":"IF('Impreso de Licencias'!A22=\"\",\"\",PROPER((CELL(\"contenido\",'Impreso de Licencias'!B22))))","v":""},{"$f":"IF('Impreso de Licencias'!A22=\"\",\"\",PROPER((CELL(\"contenido\",'Impreso de Licencias'!C22))))","v":""},{"$f":"IF('Impreso de Licencias'!A22=\"\",\"\",CELL(\"contenido\",'Impreso de Licencias'!D22))","v":""},"",{"$f":"IF(B17=\"\",\"\",IF('Impreso de Licencias'!T22>=18,\"Mayor\",IF('Impreso de Licencias'!T22>=14,\"Juvenil\",\"Infantil\")))","v":""},{"$f":"IF(B17=\"\",\"\",IF(MATCH(\"X\",'Impreso de Licencias'!I22:N22,0)=1,\"Básica A\",IF(MATCH(\"X\",'Impreso de Licencias'!I22:N22,0)=2,\"Básica B\",IF(MATCH(\"X\",'Impreso de Licencias'!I22:N22,0)=3,\"Básica B1\",IF(MATCH(\"X\",'Impreso de Licencias'!I22:N22,0)=4,\"Plus A\",IF(MATCH(\"X\",'Impreso de Licencias'!I22:N22,0)=5,\"Plus B\",IF(MATCH(\"X\",'Impreso de Licencias'!I22:N22,0)=6,\"Plus B1\")))))))","v":""},{"$f":"IF('Impreso de Licencias'!A22=\"\",\"\",PROPER((CELL(\"contenido\",'Impreso de Licencias'!F22))))","v":""},{"$f":"IF('Impreso de Licencias'!A22=\"\",\"\",CELL(\"contenido\",'Impreso de Licencias'!G22))","v":""},{"$f":"IF('Impreso de Licencias'!A22=\"\",\"\",PROPER((CELL(\"contenido\",'Impreso de Licencias'!H22))))","v":""},{"$f":"IF('Impreso de Licencias'!A22=\"\",\"\",'Impreso de Licencias'!$C$2)","v":""},{"$nulls":5},{"$f":"IF('Impreso de Licencias'!A22=\"\",\"\",PROPER((CELL(\"contenido\",'Impreso de Licencias'!E22))))","v":""}]
[null,{"$f":"IF('Impreso de Licencias'!A23=\"\",\"\",CELL(\"contenido\",'Impreso de Licencias'!A23))","v":""},{"$f":"IF('Impreso de Licencias'!A23=\"\",\"\",PROPER((CELL(\"contenido\",'Impreso de Licencias'!B23))))","v":""},{"$f":"IF('Impreso de Licencias'!A23=\"\",\"\",PROPER((CELL(\"contenido\",'Impreso de Licencias'!C23))))","v":""},{"$f":"IF('Impreso de Licencias'!A23=\"\",\"\",CELL(\"contenido\",'Impreso de Licencias'!D23))","v":""},"",{"$f":"IF(B18=\"\",\"\",IF('Impreso de Licencias'!T23>=18,\"Mayor\",IF('Impreso de Licencias'!T23>=14,\"Juvenil\",\"Infantil\")))","v":""},{"$f":"IF(B18=\"\",\"\",IF(MATCH(\"X\",'Impreso de Licencias'!I23:N23,0)=1,\"Básica A\",IF(MATCH(\"X\",'Impreso de Licencias'!I23:N23,0)=2,\"Básica B\",IF(MATCH(\"X\",'Impreso de Licencias'!I23:N23,0)=3,\"Básica B1\",IF(MATCH(\"X\",'Impreso de Licencias'!I23:N23,0)=4,\"Plus A\",IF(MATCH(\"X\",'Impreso de Licencias'!I23:N23,0)=5,\"Plus B\",IF(MATCH(\"X\",'Impreso de Licencias'!I23:N23,0)=6,\"Plus B1\")))))))","v":""},{"$f":"IF('Impreso de Licencias'!A23=\"\",\"\",PROPER((CELL(\"contenido\",'Impreso de Licencias'!F23))))","v":""},{"$f":"IF('Impreso de Licencias'!A23=\"\",\"\",CELL(\"contenido\",'Impreso de Licencias'!G23))","v":""},{"$f":"IF('Impreso de Licencias'!A23=\"\",\"\",PROPER((CELL(\"contenido\",'Impreso de Licencias'!H23))))","v":""},{"$f":"IF('Impreso de Licencias'!A23=\"\",\"\",'Impreso de Licencias'!$C$2)","v":""},{"$nulls":5},{"$f":"IF('Impreso de Licencias'!A23=\"\",\"\",PROPER((CELL(\"contenido\",'Impreso de Licencias'!E23))))","v":""}]
[null,{"$f":"IF('Impreso de Licencias'!A24=\"\",\"\",CELL(\"contenido\",'Impreso de Licencias'!A24))","v":""},{"$f":"IF('Impreso de Licencias'!A24=\"\",\"\",PROPER((CELL(\"contenido\",'Impreso de Licencias'!B24))))","v":""},{"$f":"IF('Impreso de Licencias'!A24=\"\",\"\",PROPER((CELL(\"contenido\",'Impreso de Licencias'!C24))))","v":""},{"$f":"IF('Impreso de Licencias'!A24=\"\",\"\",CELL(\"contenido\",'Impreso de Licencias'!D24))","v":""},"",{"$f":"IF(B19=\"\",\"\",IF('Impreso de Licencias'!T24>=18,\"Mayor\",IF('Impreso de Licencias'!T24>=14,\"Juvenil\",\"Infantil\")))","v":""},{"$f":"IF(B19=\"\",\"\",IF(MATCH(\"X\",'Impreso de Licencias'!I24:N24,0)=1,\"Básica A\",IF(MATCH(\"X\",'Impreso de Licencias'!I24:N24,0)=2,\"Básica B\",IF(MATCH(\"X\",'Impreso de Licencias'!I24:N24,0)=3,\"Básica B1\",IF(MATCH(\"X\",'Impreso de Licencias'!I24:N24,0)=4,\"Plus A\",IF(MATCH(\"X\",'Impreso de Licencias'!I24:N24,0)=5,\"Plus B\",IF(MATCH(\"X\",'Impreso de Licencias'!I24:N24,0)=6,\"Plus B1\")))))))","v":""},{"$f":"IF('Impreso de Licencias'!A24=\"\",\"\",PROPER((CELL(\"contenido\",'Impreso de Licencias'!F24))))","v":""},{"$f":"IF('Impreso de Licencias'!A24=\"\",\"\",CELL(\"contenido\",'Impreso de Licencias'!G24))","v":""},{"$f":"IF('Impreso de Licencias'!A24=\"\",\"\",PROPER((CELL(\"contenido\",'Impreso de Licencias'!H24))))","v":""},{"$f":"IF('Impreso de Licencias'!A24=\"\",\"\",'Impreso de Licencias'!$C$2)","v":""},{"$nulls":5},{"$f":"IF('Impreso de Licencias'!A24=\"\",\"\",PROPER((CELL(\"contenido\",'Impreso de Licencias'!E24))))","v":""}]
[null,{"$f":"IF('Impreso de Licencias'!A25=\"\",\"\",CELL(\"contenido\",'Impreso de Licencias'!A25))","v":""},{"$f":"IF('Impreso de Licencias'!A25=\"\",\"\",PROPER((CELL(\"contenido\",'Impreso de Licencias'!B25))))","v":""},{"$f":"IF('Impreso de Licencias'!A25=\"\",\"\",PROPER((CELL(\"contenido\",'Impreso de Licencias'!C25))))","v":""},{"$f":"IF('Impreso de Licencias'!A25=\"\",\"\",CELL(\"contenido\",'Impreso de Licencias'!D25))","v":""},"",{"$f":"IF(B20=\"\",\"\",IF('Impreso de Licencias'!T25>=18,\"Mayor\",IF('Impreso de Licencias'!T25>=14,\"Juvenil\",\"Infantil\")))","v":""},{"$f":"IF(B20=\"\",\"\",IF(MATCH(\"X\",'Impreso de Licencias'!I25:N25,0)=1,\"Básica A\",IF(MATCH(\"X\",'Impreso de Licencias'!I25:N25,0)=2,\"Básica B\",IF(MATCH(\"X\",'Impreso de Licencias'!I25:N25,0)=3,\"Básica B1\",IF(MATCH(\"X\",'Impreso de Licencias'!I25:N25,0)=4,\"Plus A\",IF(MATCH(\"X\",'Impreso de Licencias'!I25:N25,0)=5,\"Plus B\",IF(MATCH(\"X\",'Impreso de Licencias'!I25:N25,0)=6,\"Plus B1\")))))))","v":""},{"$f":"IF('Impreso de Licencias'!A25=\"\",\"\",PROPER((CELL(\"contenido\",'Impreso de Licencias'!F25))))","v":""},{"$f":"IF('Impreso de Licencias'!A25=\"\",\"\",CELL(\"contenido\",'Impreso de Licencias'!G25))","v":""},{"$f":"IF('Impreso de Licencias'!A25=\"\",\"\",PROPER((CELL(\"contenido\",'Impreso de Licencias'!H25))))","v":""},{"$f":"IF('Impreso de Licencias'!A25=\"\",\"\",'Impreso de Licencias'!$C$2)","v":""},{"$nulls":5},{"$f":"IF('Impreso de Licencias'!A25=\"\",\"\",PROPER((CELL(\"contenido\",'Impreso de Licencias'!E25))))","v":""}]
[null,{"$f":"IF('Impreso de Licencias'!A26=\"\",\"\",CELL(\"contenido\",'Impreso de Licencias'!A26))","v":""},{"$f":"IF('Impreso de Licencias'!A26=\"\",\"\",PROPER((CELL(\"contenido\",'Impreso de Licencias'!B26))))","v":""},{"$f":"IF('Impreso de Licencias'!A26=\"\",\"\",PROPER((CELL(\"contenido\",'Impreso de Licencias'!C26))))","v":""},{"$f":"IF('Impreso de Licencias'!A26=\"\",\"\",CELL(\"contenido\",'Impreso de Licencias'!D26))","v":""},"",{"$f":"IF(B21=\"\",\"\",IF('Impreso de Licencias'!T26>=18,\"Mayor\",IF('Impreso de Licencias'!T26>=14,\"Juvenil\",\"Infantil\")))","v":""},{"$f":"IF(B21=\"\",\"\",IF(MATCH(\"X\",'Impreso de Licencias'!I26:N26,0)=1,\"Básica A\",IF(MATCH(\"X\",'Impreso de Licencias'!I26:N26,0)=2,\"Básica B\",IF(MATCH(\"X\",'Impreso de Licencias'!I26:N26,0)=3,\"Básica B1\",IF(MATCH(\"X\",'Impreso de Licencias'!I26:N26,0)=4,\"Plus A\",IF(MATCH(\"X\",'Impreso de Licencias'!I26:N26,0)=5,\"Plus B\",IF(MATCH(\"X\",'Impreso de Licencias'!I26:N26,0)=6,\"Plus B1\")))))))","v":""},{"$f":"IF('Impreso de Licencias'!A26=\"\",\"\",PROPER((CELL(\"contenido\",'Impreso de Licencias'!F26))))","v":""},{"$f":"IF('Impreso de Licencias'!A26=\"\",\"\",CELL(\"contenido\",'Impreso de Licencias'!G26))","v":""},{"$f":"IF('Impreso de Licencias'!A26=\"\",\"\",PROPER((CELL(\"contenido\",'Impreso de Licencias'!H26))))","v":""},{"$f":"IF('Impreso de Licencias'!A26=\"\",\"\",'Impreso de Licencias'!$C$2)","v":""},{"$nulls":5},{"$f":"IF('Impreso de Licencias'!A26=\"\",\"\",PROPER((CELL(\"contenido\",'Impreso de Licencias'!E26))))","v":""}]
[null,{"$f":"IF('Impreso de Licencias'!A27=\"\",\"\",CELL(\"contenido\",'Impreso de Licencias'!A27))","v":""},{"$f":"IF('Impreso de Licencias'!A27=\"\",\"\",PROPER((CELL(\"contenido\",'Impreso de Licencias'!B27))))","v":""},{"$f":"IF('Impreso de Licencias'!A27=\"\",\"\",PROPER((CELL(\"contenido\",'Impreso de Licencias'!C27))))","v":""},{"$f":"IF('Impreso de Licencias'!A27=\"\",\"\",CELL(\"contenido\",'Impreso de Licencias'!D27))","v":""},"",{"$f":"IF(B22=\"\",\"\",IF('Impreso de Licencias'!T27>=18,\"Mayor\",IF('Impreso de Licencias'!T27>=14,\"Juvenil\",\"Infantil\")))","v":""},{"$f":"IF(B22=\"\",\"\",IF(MATCH(\"X\",'Impreso de Licencias'!I27:N27,0)=1,\"Básica A\",IF(MATCH(\"X\",'Impreso de Licencias'!I27:N27,0)=2,\"Básica B\",IF(MATCH(\"X\",'Impreso de Licencias'!I27:N27,0)=3,\"Básica B1\",IF(MATCH(\"X\",'Impreso de Licencias'!I27:N27,0)=4,\"Plus A\",IF(MATCH(\"X\",'Impreso de Licencias'!I27:N27,0)=5,\"Plus B\",IF(MATCH(\"X\",'Impreso de Licencias'!I27:N27,0)=6,\"Plus B1\")))))))","v":""},{"$f":"IF('Impreso de Licencias'!A27=\"\",\"\",PROPER((CELL(\"contenido\",'Impreso de Licencias'!F27))))","v":""},{"$f":"IF('Impreso de Licencias'!A27=\"\",\"\",CELL(\"contenido\",'Impreso de Licencias'!G27))","v":""},{"$f":"IF('Impreso de Licencias'!A27=\"\",\"\",PROPER((CELL(\"contenido\",'Impreso de Licencias'!H27))))","v":""},{"$f":"IF('Impreso de Licencias'!A27=\"\",\"\",'Impreso de Licencias'!$C$2)","v":""},{"$nulls":5},{"$f":"IF('Impreso de Licencias'!A27=\"\",\"\",PROPER((CELL(\"contenido\",'Impreso de Licencias'!E27))))","v":""}]
[null,{"$f":"IF('Impreso de Licencias'!A28=\"\",\"\",CELL(\"contenido\",'Impreso de Licencias'!A28))","v":""},{"$f":"IF('Impreso de Licencias'!A28=\"\",\"\",PROPER((CELL(\"contenido\",'Impreso de Licencias'!B28))))","v":""},{"$f":"IF('Impreso de Licencias'!A28=\"\",\"\",PROPER((CELL(\"contenido\",'Impreso de Licencias'!C28))))","v":""},{"$f":"IF('Impreso de Licencias'!A28=\"\",\"\",CELL(\"contenido\",'Impreso de Licencias'!D28))","v":""},"",{"$f":"IF(B23=\"\",\"\",IF('Impreso de Licencias'!T28>=18,\"Mayor\",IF('Impreso de Licencias'!T28>=14,\"Juvenil\",\"Infantil\")))","v":""},{"$f":"IF(B23=\"\",\"\",IF(MATCH(\"X\",'Impreso de Licencias'!I28:N28,0)=1,\"Básica A\",IF(MATCH(\"X\",'Impreso de Licencias'!I28:N28,0)=2,\"Básica B\",IF(MATCH(\"X\",'Impreso de Licencias'!I28:N28,0)=3,\"Básica B1\",IF(MATCH(\"X\",'Impreso de Licencias'!I28:N28,0)=4,\"Plus A\",IF(MATCH(\"X\",'Impreso de Licencias'!I28:N28,0)=5,\"Plus B\",IF(MATCH(\"X\",'Impreso de Licencias'!I28:N28,0)=6,\"Plus B1\")))))))","v":""},{"$f":"IF('Impreso de Licencias'!A28=\"\",\"\",PROPER((CELL(\"contenido\",'Impreso de Licencias'!F28))))","v":""},{"$f":"IF('Impreso de Licencias'!A28=\"\",\"\",CELL(\"contenido\",'Impreso de Licencias'!G28))","v":""},{"$f":"IF('Impreso de Licencias'!A28=\"\",\"\",PROPER((CELL(\"contenido\",'Impreso de Licencias'!H28))))","v":""},{"$f":"IF('Impreso de Licencias'!A28=\"\",\"\",'Impreso de Licencias'!$C$2)","v":""},{"$nulls":5},{"$f":"IF('Impreso de Licencias'!A28=\"\",\"\",PROPER((CELL(\"contenido\",'Impreso de Licencias'!E28))))","v":""}]
[null,{"$f":"IF('Impreso de Licencias'!A29=\"\",\"\",CELL(\"contenido\",'Impreso de Licencias'!A29))","v":""},{"$f":"IF('Impreso de Licencias'!A29=\"\",\"\",PROPER((CELL(\"contenido\",'Impreso de Licencias'!B29))))","v":""},{"$f":"IF('Impreso de Licencias'!A29=\"\",\"\",PROPER((CELL(\"contenido\",'Impreso de Licencias'!C29))))","v":""},{"$f":"IF('Impreso de Licencias'!A29=\"\",\"\",CELL(\"contenido\",'Impreso de Licencias'!D29))","v":""},"",{"$f":"IF(B24=\"\",\"\",IF('Impreso de Licencias'!T29>=18,\"Mayor\",IF('Impreso de Licencias'!T29>=14,\"Juvenil\",\"Infantil\")))","v":""},{"$f":"IF(B24=\"\",\"\",IF(MATCH(\"X\",'Impreso de Licencias'!I29:N29,0)=1,\"Básica A\",IF(MATCH(\"X\",'Impreso de Licencias'!I29:N29,0)=2,\"Básica B\",IF(MATCH(\"X\",'Impreso de Licencias'!I29:N29,0)=3,\"Básica B1\",IF(MATCH(\"X\",'Impreso de Licencias'!I29:N29,0)=4,\"Plus A\",IF(MATCH(\"X\",'Impreso de Licencias'!I29:N29,0)=5,\"Plus B\",IF(MATCH(\"X\",'Impreso de Licencias'!I29:N29,0)=6,\"Plus B1\")))))))","v":""},{"$f":"IF('Impreso de Licencias'!A29=\"\",\"\",PROPER((CELL(\"contenido\",'Impreso de Licencias'!F29))))","v":""},{"$f":"IF('Impreso de Licencias'!A29=\"\",\"\",CELL(\"contenido\",'Impreso de Licencias'!G29))","v":""},{"$f":"IF('Impreso de Licencias'!A29=\"\",\"\",PROPER((CELL(\"contenido\",'Impreso de Licencias'!H29))))","v":""},{"$f":"IF('Impreso de Licencias'!A29=\"\",\"\",'Impreso de Licencias'!$C$2)","v":""},{"$nulls":5},{"$f":"IF('Impreso de Licencias'!A29=\"\",\"\",PROPER((CELL(\"contenido\",'Impreso de Licencias'!E29))))","v":""}]
[null,{"$f":"IF('Impreso de Licencias'!A30=\"\",\"\",CELL(\"contenido\",'Impreso de Licencias'!A30))","v":""},{"$f":"IF('Impreso de Licencias'!A30=\"\",\"\",PROPER((CELL(\"contenido\",'Impreso de Licencias'!B30))))","v":""},{"$f":"IF('Impreso de Licencias'!A30=\"\",\"\",PROPER((CELL(\"contenido\",'Impreso de Licencias'!C30))))","v":""},{"$f":"IF('Impreso de Licencias'!A30=\"\",\"\",CELL(\"contenido\",'Impreso de Licencias'!D30))","v":""},"",{"$f":"IF(B25=\"\",\"\",IF('Impreso de Licencias'!T30>=18,\"Mayor\",IF('Impreso de Licencias'!T30>=14,\"Juvenil\",\"Infantil\")))","v":""},{"$f":"IF(B25=\"\",\"\",IF(MATCH(\"X\",'Impreso de Licencias'!I30:N30,0)=1,\"Básica A\",IF(MATCH(\"X\",'Impreso de Licencias'!I30:N30,0)=2,\"Básica B\",IF(MATCH(\"X\",'Impreso de Licencias'!I30:N30,0)=3,\"Básica B1\",IF(MATCH(\"X\",'Impreso de Licencias'!I30:N30,0)=4,\"Plus A\",IF(MATCH(\"X\",'Impreso de Licencias'!I30:N30,0)=5,\"Plus B\",IF(MATCH(\"X\",'Impreso de Licencias'!I30:N30,0)=6,\"Plus B1\")))))))","v":""},{"$f":"IF('Impreso de Licencias'!A30=\"\",\"\",PROPER((CELL(\"contenido\",'Impreso de Licencias'!F30))))","v":""},{"$f":"IF('Impreso de Licencias'!A30=\"\",\"\",CELL(\"contenido\",'Impreso de Licencias'!G30))","v":""},{"$f":"IF('Impreso de Licencias'!A30=\"\",\"\",PROPER((CELL(\"contenido\",'Impreso de Licencias'!H30))))","v":""},{"$f":"IF('Impreso de Licencias'!A30=\"\",\"\",'Impreso de Licencias'!$C$2)","v":""},{"$nulls":5},{"$f":"IF('Impreso de Licencias'!A30=\"\",\"\",PROPER((CELL(\"contenido\",'Impreso de Licencias'!E30))))","v":""}]
[null,{"$f":"IF('Impreso de Licencias'!A31=\"\",\"\",CELL(\"contenido\",'Impreso de Licencias'!A31))","v":""},{"$f":"IF('Impreso de Licencias'!A31=\"\",\"\",PROPER((CELL(\"contenido\",'Impreso de Licencias'!B31))))","v":""},{"$f":"IF('Impreso de Licencias'!A31=\"\",\"\",PROPER((CELL(\"contenido\",'Impreso de Licencias'!C31))))","v":""},{"$f":"IF('Impreso de Licencias'!A31=\"\",\"\",CELL(\"contenido\",'Impreso de Licencias'!D31))","v":""},"",{"$f":"IF(B26=\"\",\"\",IF('Impreso de Licencias'!T31>=18,\"Mayor\",IF('Impreso de Licencias'!T31>=14,\"Juvenil\",\"Infantil\")))","v":""},{"$f":"IF(B26=\"\",\"\",IF(MATCH(\"X\",'Impreso de Licencias'!I31:N31,0)=1,\"Básica A\",IF(MATCH(\"X\",'Impreso de Licencias'!I31:N31,0)=2,\"Básica B\",IF(MATCH(\"X\",'Impreso de Licencias'!I31:N31,0)=3,\"Básica B1\",IF(MATCH(\"X\",'Impreso de Licencias'!I31:N31,0)=4,\"Plus A\",IF(MATCH(\"X\",'Impreso de Licencias'!I31:N31,0)=5,\"Plus B\",IF(MATCH(\"X\",'Impreso de Licencias'!I31:N31,0)=6,\"Plus B1\")))))))","v":""},{"$f":"IF('Impreso de Licencias'!A31=\"\",\"\",PROPER((CELL(\"contenido\",'Impreso de Licencias'!F31))))","v":""},{"$f":"IF('Impreso de Licencias'!A31=\"\",\"\",CELL(\"contenido\",'Impreso de Licencias'!G31))","v":""},{"$f":"IF('Impreso de Licencias'!A31=\"\",\"\",PROPER((CELL(\"contenido\",'Impreso de Licencias'!H31))))","v":""},{"$f":"IF('Impreso de Licencias'!A31=\"\",\"\",'Impreso de Licencias'!$C$2)","v":""},{"$nulls":5},{"$f":"IF('Impreso de Licencias'!A31=\"\",\"\",PROPER((CELL(\"contenido\",'Impreso de Licencias'!E31))))","v":""}]
[null,{"$f":"IF('Impreso de Licencias'!A32=\"\",\"\",CELL(\"contenido\",'Impreso de Licencias'!A32))","v":""},{"$f":"IF('Impreso de Licencias'!A32=\"\",\"\",PROPER((CELL(\"contenido\",'Impreso de Licencias'!B32))))","v":""},{"$f":"IF('Impreso de Licencias'!A32=\"\",\"\",PROPER((CELL(\"contenido\",'Impreso de Licencias'!C32))))","v":""},{"$f":"IF('Impreso de Licencias'!A32=\"\",\"\",CELL(\"contenido\",'Impreso de Licencias'!D32))","v":""},"",{"$f":"IF(B27=\"\",\"\",IF('Impreso de Licencias'!T32>=18,\"Mayor\",IF('Impreso de Licencias'!T32>=14,\"Juvenil\",\"Infantil\")))","v":""},{"$f":"IF(B27=\"\",\"\",IF(MATCH(\"X\",'Impreso de Licencias'!I32:N32,0)=1,\"Básica A\",IF(MATCH(\"X\",'Impreso de Licencias'!I32:N32,0)=2,\"Básica B\",IF(MATCH(\"X\",'Impreso de Licencias'!I32:N32,0)=3,\"Básica B1\",IF(MATCH(\"X\",'Impreso de Licencias'!I32:N32,0)=4,\"Plus A\",IF(MATCH(\"X\",'Impreso de Licencias'!I32:N32,0)=5,\"Plus B\",IF(MATCH(\"X\",'Impreso de Licencias'!I32:N32,0)=6,\"Plus B1\")))))))","v":""},{"$f":"IF('Impreso de Licencias'!A32=\"\",\"\",PROPER((CELL(\"contenido\",'Impreso de Licencias'!F32))))","v":""},{"$f":"IF('Impreso de Licencias'!A32=\"\",\"\",CELL(\"contenido\",'Impreso de Licencias'!G32))","v":""},{"$f":"IF('Impreso de Licencias'!A32=\"\",\"\",PROPER((CELL(\"contenido\",'Impreso de Licencias'!H32))))","v":""},{"$f":"IF('Impreso de Licencias'!A32=\"\",\"\",'Impreso de Licencias'!$C$2)","v":""},{"$nulls":5},{"$f":"IF('Impreso de Licencias'!A32=\"\",\"\",PROPER((CELL(\"contenido\",'Impreso de Licencias'!E32))))","v":""}]
[null,{"$f":"IF('Impreso de Licencias'!A33=\"\",\"\",CELL(\"contenido\",'Impreso de Licencias'!A33))","v":""},{"$f":"IF('Impreso de Licencias'!A33=\"\",\"\",PROPER((CELL(\"contenido\",'Impreso de Licencias'!B33))))","v":""},{"$f":"IF('Impreso de Licencias'!A33=\"\",\"\",PROPER((CELL(\"contenido\",'Impreso de Licencias'!C33))))","v":""},{"$f":"IF('Impreso de Licencias'!A33=\"\",\"\",CELL(\"contenido\",'Impreso de Licencias'!D33))","v":""},"",{"$f":"IF(B28=\"\",\"\",IF('Impreso de Licencias'!T33>=18,\"Mayor\",IF('Impreso de Licencias'!T33>=14,\"Juvenil\",\"Infantil\")))","v":""},{"$f":"IF(B28=\"\",\"\",IF(MATCH(\"X\",'Impreso de Licencias'!I33:N33,0)=1,\"Básica A\",IF(MATCH(\"X\",'Impreso de Licencias'!I33:N33,0)=2,\"Básica B\",IF(MATCH(\"X\",'Impreso de Licencias'!I33:N33,0)=3,\"Básica B1\",IF(MATCH(\"X\",'Impreso de Licencias'!I33:N33,0)=4,\"Plus A\",IF(MATCH(\"X\",'Impreso de Licencias'!I33:N33,0)=5,\"Plus B\",IF(MATCH(\"X\",'Impreso de Licencias'!I33:N33,0)=6,\"Plus B1\")))))))","v":""},{"$f":"IF('Impreso de Licencias'!A33=\"\",\"\",PROPER((CELL(\"contenido\",'Impreso de Licencias'!F33))))","v":""},{"$f":"IF('Impreso de Licencias'!A33=\"\",\"\",CELL(\"contenido\",'Impreso de Licencias'!G33))","v":""},{"$f":"IF('Impreso de Licencias'!A33=\"\",\"\",PROPER((CELL(\"contenido\",'Impreso de Licencias'!H33))))","v":""},{"$f":"IF('Impreso de Licencias'!A33=\"\",\"\",'Impreso de Licencias'!$C$2)","v":""},{"$nulls":5},{"$f":"IF('Impreso de Licencias'!A33=\"\",\"\",PROPER((CELL(\"contenido\",'Impreso de Licencias'!E33))))","v":""}]
[null,{"$f":"IF('Impreso de Licencias'!A34=\"\",\"\",CELL(\"contenido\",'Impreso de Licencias'!A34))","v":""},{"$f":"IF('Impreso de Licencias'!A34=\"\",\"\",PROPER((CELL(\"contenido\",'Impreso de Licencias'!B34))))","v":""},{"$f":"IF('Impreso de Licencias'!A34=\"\",\"\",PROPER((CELL(\"contenido\",'Impreso de Licencias'!C34))))","v":""},{"$f":"IF('Impreso de Licencias'!A34=\"\",\"\",CELL(\"contenido\",'Impreso de Licencias'!D34))","v":""},"",{"$f":"IF(B29=\"\",\"\",IF('Impreso de Licencias'!T34>=18,\"Mayor\",IF('Impreso de Licencias'!T34>=14,\"Juvenil\",\"Infantil\")))","v":""},{"$f":"IF(B29=\"\",\"\",IF(MATCH(\"X\",'Impreso de Licencias'!I34:N34,0)=1,\"Básica A\",IF(MATCH(\"X\",'Impreso de Licencias'!I34:N34,0)=2,\"Básica B\",IF(MATCH(\"X\",'Impreso de Licencias'!I34:N34,0)=3,\"Básica B1\",IF(MATCH(\"X\",'Impreso de Licencias'!I34:N34,0)=4,\"Plus A\",IF(MATCH(\"X\",'Impreso de Licencias'!I34:N34,0)=5,\"Plus B\",IF(MATCH(\"X\",'Impreso de Licencias'!I34:N34,0)=6,\"Plus B1\")))))))","v":""},{"$f":"IF('Impreso de Licencias'!A34=\"\",\"\",PROPER((CELL(\"contenido\",'Impreso de Licencias'!F34))))","v":""},{"$f":"IF('Impreso de Licencias'!A34=\"\",\"\",CELL(\"contenido\",'Impreso de Licencias'!G34))","v":""},{"$f":"IF('Impreso de Licencias'!A34=\"\",\"\",PROPER((CELL(\"contenido\",'Impreso de Licencias'!H34))))","v":""},{"$f":"IF('Impreso de Licencias'!A34=\"\",\"\",'Impreso de Licencias'!$C$2)","v":""},{"$nulls":5},{"$f":"IF('Impreso de Licencias'!A34=\"\",\"\",PROPER((CELL(\"contenido\",'Impreso de Licencias'!E34))))","v":""}]
[null,{"$f":"IF('Impreso de Licencias'!A35=\"\",\"\",CELL(\"contenido\",'Impreso de Licencias'!A35))","v":""},{"$f":"IF('Impreso de Licencias'!A35=\"\",\"\",PROPER((CELL(\"contenido\",'Impreso de Licencias'!B35))))","v":""},{"$f":"IF('Impreso de Licencias'!A35=\"\",\"\",PROPER((CELL(\"contenido\",'Impreso de Licencias'!C35))))","v":""},{"$f":"IF('Impreso de Licencias'!A35=\"\",\"\",CELL(\"contenido\",'Impreso de Licencias'!D35))","v":""},"",{"$f":"IF(B30=\"\",\"\",IF('Impreso de Licencias'!T35>=18,\"Mayor\",IF('Impreso de Licencias'!T35>=14,\"Juvenil\",\"Infantil\")))","v":""},{"$f":"IF(B30=\"\",\"\",IF(MATCH(\"X\",'Impreso de Licencias'!I35:N35,0)=1,\"Básica A\",IF(MATCH(\"X\",'Impreso de Licencias'!I35:N35,0)=2,\"Básica B\",IF(MATCH(\"X\",'Impreso de Licencias'!I35:N35,0)=3,\"Básica B1\",IF(MATCH(\"X\",'Impreso de Licencias'!I35:N35,0)=4,\"Plus A\",IF(MATCH(\"X\",'Impreso de Licencias'!I35:N35,0)=5,\"Plus B\",IF(MATCH(\"X\",'Impreso de Licencias'!I35:N35,0)=6,\"Plus B1\")))))))","v":""},{"$f":"IF('Impreso de Licencias'!A35=\"\",\"\",PROPER((CELL(\"contenido\",'Impreso de Licencias'!F35))))","v":""},{"$f":"IF('Impreso de Licencias'!A35=\"\",\"\",CELL(\"contenido\",'Impreso de Licencias'!G35))","v":""},{"$f":"IF('Impreso de Licencias'!A35=\"\",\"\",PROPER((CELL(\"contenido\",'Impreso de Licencias'!H35))))","v":""},{"$f":"IF('Impreso de Licencias'!A35=\"\",\"\",'Impreso de Licencias'!$C$2)","v":""},{"$nulls":5},{"$f":"IF('Impreso de Licencias'!A35=\"\",\"\",PROPER((CELL(\"contenido\",'Impreso de Licencias'!E35))))","v":""}]
[null,{"$f":"IF('Impreso de Licencias'!A36=\"\",\"\",CELL(\"contenido\",'Impreso de Licencias'!A36))","v":""},{"$f":"IF('Impreso de Licencias'!A36=\"\",\"\",PROPER((CELL(\"contenido\",'Impreso de Licencias'!B36))))","v":""},{"$f":"IF('Impreso de Licencias'!A36=\"\",\"\",PROPER((CELL(\"contenido\",'Impreso de Licencias'!C36))))","v":""},{"$f":"IF('Impreso de Licencias'!A36=\"\",\"\",CELL(\"contenido\",'Impreso de Licencias'!D36))","v":""},"",{"$f":"IF(B31=\"\",\"\",IF('Impreso de Licencias'!T36>=18,\"Mayor\",IF('Impreso de Licencias'!T36>=14,\"Juvenil\",\"Infantil\")))","v":""},{"$f":"IF(B31=\"\",\"\",IF(MATCH(\"X\",'Impreso de Licencias'!I36:N36,0)=1,\"Básica A\",IF(MATCH(\"X\",'Impreso de Licencias'!I36:N36,0)=2,\"Básica B\",IF(MATCH(\"X\",'Impreso de Licencias'!I36:N36,0)=3,\"Básica B1\",IF(MATCH(\"X\",'Impreso de Licencias'!I36:N36,0)=4,\"Plus A\",IF(MATCH(\"X\",'Impreso de Licencias'!I36:N36,0)=5,\"Plus B\",IF(MATCH(\"X\",'Impreso de Licencias'!I36:N36,0)=6,\"Plus B1\")))))))","v":""},{"$f":"IF('Impreso de Licencias'!A36=\"\",\"\",PROPER((CELL(\"contenido\",'Impreso de Licencias'!F36))))","v":""},{"$f":"IF('Impreso de Licencias'!A36=\"\",\"\",CELL(\"contenido\",'Impreso de Licencias'!G36))","v":""},{"$f":"IF('Impreso de Licencias'!A36=\"\",\"\",PROPER((CELL(\"contenido\",'Impreso de Licencias'!H36))))","v":""},{"$f":"IF('Impreso de Licencias'!A36=\"\",\"\",'Impreso de Licencias'!$C$2)","v":""},{"$nulls":5},{"$f":"IF('Impreso de Licencias'!A36=\"\",\"\",PROPER((CELL(\"contenido\",'Impreso de Licencias'!E36))))","v":""}]
[null,{"$f":"IF('Impreso de Licencias'!A37=\"\",\"\",CELL(\"contenido\",'Impreso de Licencias'!A37))","v":""},{"$f":"IF('Impreso de Licencias'!A37=\"\",\"\",PROPER((CELL(\"contenido\",'Impreso de Licencias'!B37))))","v":""},{"$f":"IF('Impreso de Licencias'!A37=\"\",\"\",PROPER((CELL(\"contenido\",'Impreso de Licencias'!C37))))","v":""},{"$f":"IF('Impreso de Licencias'!A37=\"\",\"\",CELL(\"contenido\",'Impreso de Licencias'!D37))","v":""},"",{"$f":"IF(B32=\"\",\"\",IF('Impreso de Licencias'!T37>=18,\"Mayor\",IF('Impreso de Licencias'!T37>=14,\"Juvenil\",\"Infantil\")))","v":""},{"$f":"IF(B32=\"\",\"\",IF(MATCH(\"X\",'Impreso de Licencias'!I37:N37,0)=1,\"Básica A\",IF(MATCH(\"X\",'Impreso de Licencias'!I37:N37,0)=2,\"Básica B\",IF(MATCH(\"X\",'Impreso de Licencias'!I37:N37,0)=3,\"Básica B1\",IF(MATCH(\"X\",'Impreso de Licencias'!I37:N37,0)=4,\"Plus A\",IF(MATCH(\"X\",'Impreso de Licencias'!I37:N37,0)=5,\"Plus B\",IF(MATCH(\"X\",'Impreso de Licencias'!I37:N37,0)=6,\"Plus B1\")))))))","v":""},{"$f":"IF('Impreso de Licencias'!A37=\"\",\"\",PROPER((CELL(\"contenido\",'Impreso de Licencias'!F37))))","v":""},{"$f":"IF('Impreso de Licencias'!A37=\"\",\"\",CELL(\"contenido\",'Impreso de Licencias'!G37))","v":""},{"$f":"IF('Impreso de Licencias'!A37=\"\",\"\",PROPER((CELL(\"contenido\",'Impreso de Licencias'!H37))))","v":""},{"$f":"IF('Impreso de Licencias'!A37=\"\",\"\",'Impreso de Licencias'!$C$2)","v":""},{"$nulls":5},{"$f":"IF('Impreso de Licencias'!A37=\"\",\"\",PROPER((CELL(\"contenido\",'Impreso de Licencias'!E37))))","v":""}]
[null,{"$f":"IF('Impreso de Licencias'!A38=\"\",\"\",CELL(\"contenido\",'Impreso de Licencias'!A38))","v":""},{"$f":"IF('Impreso de Licencias'!A38=\"\",\"\",PROPER((CELL(\"contenido\",'Impreso de Licencias'!B38))))","v":""},{"$f":"IF('Impreso de Licencias'!A38=\"\",\"\",PROPER((CELL(\"contenido\",'Impreso de Licencias'!C38))))","v":""},{"$f":"IF('Impreso de Licencias'!A38=\"\",\"\",CELL(\"contenido\",'Impreso de Licencias'!D38))","v":""},"",{"$f":"IF(B33=\"\",\"\",IF('Impreso de Licencias'!T38>=18,\"Mayor\",IF('Impreso de Licencias'!T38>=14,\"Juvenil\",\"Infantil\")))","v":""},{"$f":"IF(B33=\"\",\"\",IF(MATCH(\"X\",'Impreso de Licencias'!I38:N38,0)=1,\"Básica A\",IF(MATCH(\"X\",'Impreso de Licencias'!I38:N38,0)=2,\"Básica B\",IF(MATCH(\"X\",'Impreso de Licencias'!I38:N38,0)=3,\"Básica B1\",IF(MATCH(\"X\",'Impreso de Licencias'!I38:N38,0)=4,\"Plus A\",IF(MATCH(\"X\",'Impreso de Licencias'!I38:N38,0)=5,\"Plus B\",IF(MATCH(\"X\",'Impreso de Licencias'!I38:N38,0)=6,\"Plus B1\")))))))","v":""},{"$f":"IF('Impreso de Licencias'!A38=\"\",\"\",PROPER((CELL(\"contenido\",'Impreso de Licencias'!F38))))","v":""},{"$f":"IF('Impreso de Licencias'!A38=\"\",\"\",CELL(\"contenido\",'Impreso de Licencias'!G38))","v":""},{"$f":"IF('Impreso de Licencias'!A38=\"\",\"\",PROPER((CELL(\"contenido\",'Impreso de Licencias'!H38))))","v":""},{"$f":"IF('Impreso de Licencias'!A38=\"\",\"\",'Impreso de Licencias'!$C$2)","v":""},{"$nulls":5},{"$f":"IF('Impreso de Licencias'!A38=\"\",\"\",PROPER((CELL(\"contenido\",'Impreso de Licencias'!E38))))","v":""}]
[null,{"$f":"IF('Impreso de Licencias'!A39=\"\",\"\",CELL(\"contenido\",'Impreso de Licencias'!A39))","v":""},{"$f":"IF('Impreso de Licencias'!A39=\"\",\"\",PROPER((CELL(\"contenido\",'Impreso de Licencias'!B39))))","v":""},{"$f":"IF('Impreso de Licencias'!A39=\"\",\"\",PROPER((CELL(\"contenido\",'Impreso de Licencias'!C39))))","v":""},{"$f":"IF('Impreso de Licencias'!A39=\"\",\"\",CELL(\"contenido\",'Impreso de Licencias'!D39))","v":""},"",{"$f":"IF(B34=\"\",\"\",IF('Impreso de Licencias'!T39>=18,\"Mayor\",IF('Impreso de Licencias'!T39>=14,\"Juvenil\",\"Infantil\")))","v":""},{"$f":"IF(B34=\"\",\"\",IF(MATCH(\"X\",'Impreso de Licencias'!I39:N39,0)=1,\"Básica A\",IF(MATCH(\"X\",'Impreso de Licencias'!I39:N39,0)=2,\"Básica B\",IF(MATCH(\"X\",'Impreso de Licencias'!I39:N39,0)=3,\"Básica B1\",IF(MATCH(\"X\",'Impreso de Licencias'!I39:N39,0)=4,\"Plus A\",IF(MATCH(\"X\",'Impreso de Licencias'!I39:N39,0)=5,\"Plus B\",IF(MATCH(\"X\",'Impreso de Licencias'!I39:N39,0)=6,\"Plus B1\")))))))","v":""},{"$f":"IF('Impreso de Licencias'!A39=\"\",\"\",PROPER((CELL(\"contenido\",'Impreso de Licencias'!F39))))","v":""},{"$f":"IF('Impreso de Licencias'!A39=\"\",\"\",CELL(\"contenido\",'Impreso de Licencias'!G39))","v":""},{"$f":"IF('Impreso de Licencias'!A39=\"\",\"\",PROPER((CELL(\"contenido\",'Impreso de Licencias'!H39))))","v":""},{"$f":"IF('Impreso de Licencias'!A39=\"\",\"\",'Impreso de Licencias'!$C$2)","v":""},{"$nulls":5},{"$f":"IF('Impreso de Licencias'!A39=\"\",\"\",PROPER((CELL(\"contenido\",'Impreso de Licencias'!E39))))","v":""}]
[null,{"$f":"IF('Impreso de Licencias'!A40=\"\",\"\",CELL(\"contenido\",'Impreso de Licencias'!A40))","v":""},{"$f":"IF('Impreso de Licencias'!A40=\"\",\"\",PROPER((CELL(\"contenido\",'Impreso de Licencias'!B40))))","v":""},{"$f":"IF('Impreso de Licencias'!A40=\"\",\"\",PROPER((CELL(\"contenido\",'Impreso de Licencias'!C40))))","v":""},{"$f":"IF('Impreso de Licencias'!A40=\"\",\"\",CELL(\"contenido\",'Impreso de Licencias'!D40))","v":""},"",{"$f":"IF(B35=\"\",\"\",IF('Impreso de Licencias'!T40>=18,\"Mayor\",IF('Impreso de Licencias'!T40>=14,\"Juvenil\",\"Infantil\")))","v":""},{"$f":"IF(B35=\"\",\"\",IF(MATCH(\"X\",'Impreso de Licencias'!I40:N40,0)=1,\"Básica A\",IF(MATCH(\"X\",'Impreso de Licencias'!I40:N40,0)=2,\"Básica B\",IF(MATCH(\"X\",'Impreso de Licencias'!I40:N40,0)=3,\"Básica B1\",IF(MATCH(\"X\",'Impreso de Licencias'!I40:N40,0)=4,\"Plus A\",IF(MATCH(\"X\",'Impreso de Licencias'!I40:N40,0)=5,\"Plus B\",IF(MATCH(\"X\",'Impreso de Licencias'!I40:N40,0)=6,\"Plus B1\")))))))","v":""},{"$f":"IF('Impreso de Licencias'!A40=\"\",\"\",PROPER((CELL(\"contenido\",'Impreso de Licencias'!F40))))","v":""},{"$f":"IF('Impreso de Licencias'!A40=\"\",\"\",CELL(\"contenido\",'Impreso de Licencias'!G40))","v":""},{"$f":"IF('Impreso de Licencias'!A40=\"\",\"\",PROPER((CELL(\"contenido\",'Impreso de Licencias'!H40))))","v":""},{"$f":"IF('Impreso de Licencias'!A40=\"\",\"\",'Impreso de Licencias'!$C$2)","v":""},{"$nulls":5},{"$f":"IF('Impreso de Licencias'!A40=\"\",\"\",PROPER((CELL(\"contenido\",'Impreso de Licencias'!E40))))","v":""}]
[null,{"$f":"IF('Impreso de Licencias'!A41=\"\",\"\",CELL(\"contenido\",'Impreso de Licencias'!A41))","v":""},{"$f":"IF('Impreso de Licencias'!A41=\"\",\"\",PROPER((CELL(\"contenido\",'Impreso de Licencias'!B41))))","v":""},{"$f":"IF('Impreso de Licencias'!A41=\"\",\"\",PROPER((CELL(\"contenido\",'Impreso de Licencias'!C41))))","v":""},{"$f":"IF('Impreso de Licencias'!A41=\"\",\"\",CELL(\"contenido\",'Impreso de Licencias'!D41))","v":""},"",{"$f":"IF(B36=\"\",\"\",IF('Impreso de Licencias'!T41>=18,\"Mayor\",IF('Impreso de Licencias'!T41>=14,\"Juvenil\",\"Infantil\")))","v":""},{"$f":"IF(B36=\"\",\"\",IF(MATCH(\"X\",'Impreso de Licencias'!I41:N41,0)=1,\"Básica A\",IF(MATCH(\"X\",'Impreso de Licencias'!I41:N41,0)=2,\"Básica B\",IF(MATCH(\"X\",'Impreso de Licencias'!I41:N41,0)=3,\"Básica B1\",IF(MATCH(\"X\",'Impreso de Licencias'!I41:N41,0)=4,\"Plus A\",IF(MATCH(\"X\",'Impreso de Licencias'!I41:N41,0)=5,\"Plus B\",IF(MATCH(\"X\",'Impreso de Licencias'!I41:N41,0)=6,\"Plus B1\")))))))","v":""},{"$f":"IF('Impreso de Licencias'!A41=\"\",\"\",PROPER((CELL(\"contenido\",'Impreso de Licencias'!F41))))","v":""},{"$f":"IF('Impreso de Licencias'!A41=\"\",\"\",CELL(\"contenido\",'Impreso de Licencias'!G41))","v":""},{"$f":"IF('Impreso de Licencias'!A41=\"\",\"\",PROPER((CELL(\"contenido\",'Impreso de Licencias'!H41))))","v":""},{"$f":"IF('Impreso de Licencias'!A41=\"\",\"\",'Impreso de Licencias'!$C$2)","v":""},{"$nulls":5},{"$f":"IF('Impreso de Licencias'!A41=\"\",\"\",PROPER((CELL(\"contenido\",'Impreso de Licencias'!E41))))","v":""}]
[null,{"$f":"IF('Impreso de Licencias'!A42=\"\",\"\",CELL(\"contenido\",'Impreso de Licencias'!A42))","v":""},{"$f":"IF('Impreso de Licencias'!A42=\"\",\"\",PROPER((CELL(\"contenido\",'Impreso de Licencias'!B42))))","v":""},{"$f":"IF('Impreso de Licencias'!A42=\"\",\"\",PROPER((CELL(\"contenido\",'Impreso de Licencias'!C42))))","v":""},{"$f":"IF('Impreso de Licencias'!A42=\"\",\"\",CELL(\"contenido\",'Impreso de Licencias'!D42))","v":""},"",{"$f":"IF(B37=\"\",\"\",IF('Impreso de Licencias'!T42>=18,\"Mayor\",IF('Impreso de Licencias'!T42>=14,\"Juvenil\",\"Infantil\")))","v":""},{"$f":"IF(B37=\"\",\"\",IF(MATCH(\"X\",'Impreso de Licencias'!I42:N42,0)=1,\"Básica A\",IF(MATCH(\"X\",'Impreso de Licencias'!I42:N42,0)=2,\"Básica B\",IF(MATCH(\"X\",'Impreso de Licencias'!I42:N42,0)=3,\"Básica B1\",IF(MATCH(\"X\",'Impreso de Licencias'!I42:N42,0)=4,\"Plus A\",IF(MATCH(\"X\",'Impreso de Licencias'!I42:N42,0)=5,\"Plus B\",IF(MATCH(\"X\",'Impreso de Licencias'!I42:N42,0)=6,\"Plus B1\")))))))","v":""},{"$f":"IF('Impreso de Licencias'!A42=\"\",\"\",PROPER((CELL(\"contenido\",'Impreso de Licencias'!F42))))","v":""},{"$f":"IF('Impreso de Licencias'!A42=\"\",\"\",CELL(\"contenido\",'Impreso de Licencias'!G42))","v":""},{"$f":"IF('Impreso de Licencias'!A42=\"\",\"\",PROPER((CELL(\"contenido\",'Impreso de Licencias'!H42))))","v":""},{"$f":"IF('Impreso de Licencias'!A42=\"\",\"\",'Impreso de Licencias'!$C$2)","v":""},{"$nulls":5},{"$f":"IF('Impreso de Licencias'!A42=\"\",\"\",PROPER((CELL(\"contenido\",'Impreso de Licencias'!E42))))","v":""}]
[null,{"$f":"IF('Impreso de Licencias'!A43=\"\",\"\",CELL(\"contenido\",'Impreso de Licencias'!A43))","v":""},{"$f":"IF('Impreso de Licencias'!A43=\"\",\"\",PROPER((CELL(\"contenido\",'Impreso de Licencias'!B43))))","v":""},{"$f":"IF('Impreso de Licencias'!A43=\"\",\"\",PROPER((CELL(\"contenido\",'Impreso de Licencias'!C43))))","v":""},{"$f":"IF('Impreso de Licencias'!A43=\"\",\"\",CELL(\"contenido\",'Impreso de Licencias'!D43))","v":""},"",{"$f":"IF(B38=\"\",\"\",IF('Impreso de Licencias'!T43>=18,\"Mayor\",IF('Impreso de Licencias'!T43>=14,\"Juvenil\",\"Infantil\")))","v":""},{"$f":"IF(B38=\"\",\"\",IF(MATCH(\"X\",'Impreso de Licencias'!I43:N43,0)=1,\"Básica A\",IF(MATCH(\"X\",'Impreso de Licencias'!I43:N43,0)=2,\"Básica B\",IF(MATCH(\"X\",'Impreso de Licencias'!I43:N43,0)=3,\"Básica B1\",IF(MATCH(\"X\",'Impreso de Licencias'!I43:N43,0)=4,\"Plus A\",IF(MATCH(\"X\",'Impreso de Licencias'!I43:N43,0)=5,\"Plus B\",IF(MATCH(\"X\",'Impreso de Licencias'!I43:N43,0)=6,\"Plus B1\")))))))","v":""},{"$f":"IF('Impreso de Licencias'!A43=\"\",\"\",PROPER((CELL(\"contenido\",'Impreso de Licencias'!F43))))","v":""},{"$f":"IF('Impreso de Licencias'!A43=\"\",\"\",CELL(\"contenido\",'Impreso de Licencias'!G43))","v":""},{"$f":"IF('Impreso de Licencias'!A43=\"\",\"\",PROPER((CELL(\"contenido\",'Impreso de Licencias'!H43))))","v":""},{"$f":"IF('Impreso de Licencias'!A43=\"\",\"\",'Impreso de Licencias'!$C$2)","v":""},{"$nulls":5},{"$f":"IF('Impreso de Licencias'!A43=\"\",\"\",PROPER((CELL(\"contenido\",'Impreso de Licencias'!E43))))","v":""}]
[null,{"$f":"IF('Impreso de Licencias'!A44=\"\",\"\",CELL(\"contenido\",'Impreso de Licencias'!A44))","v":""},{"$f":"IF('Impreso de Licencias'!A44=\"\",\"\",PROPER((CELL(\"contenido\",'Impreso de Licencias'!B44))))","v":""},{"$f":"IF('Impreso de Licencias'!A44=\"\",\"\",PROPER((CELL(\"contenido\",'Impreso de Licencias'!C44))))","v":""},{"$f":"IF('Impreso de Licencias'!A44=\"\",\"\",CELL(\"contenido\",'Impreso de Licencias'!D44))","v":""},"",{"$f":"IF(B39=\"\",\"\",IF('Impreso de Licencias'!T44>=18,\"Mayor\",IF('Impreso de Licencias'!T44>=14,\"Juvenil\",\"Infantil\")))","v":""},{"$f":"IF(B39=\"\",\"\",IF(MATCH(\"X\",'Impreso de Licencias'!I44:N44,0)=1,\"Básica A\",IF(MATCH(\"X\",'Impreso de Licencias'!I44:N44,0)=2,\"Básica B\",IF(MATCH(\"X\",'Impreso de Licencias'!I44:N44,0)=3,\"Básica B1\",IF(MATCH(\"X\",'Impreso de Licencias'!I44:N44,0)=4,\"Plus A\",IF(MATCH(\"X\",'Impreso de Licencias'!I44:N44,0)=5,\"Plus B\",IF(MATCH(\"X\",'Impreso de Licencias'!I44:N44,0)=6,\"Plus B1\")))))))","v":""},{"$f":"IF('Impreso de Licencias'!A44=\"\",\"\",PROPER((CELL(\"contenido\",'Impreso de Licencias'!F44))))","v":""},{"$f":"IF('Impreso de Licencias'!A44=\"\",\"\",CELL(\"contenido\",'Impreso de Licencias'!G44))","v":""},{"$f":"IF('Impreso de Licencias'!A44=\"\",\"\",PROPER((CELL(\"contenido\",'Impreso de Licencias'!H44))))","v":""},{"$f":"IF('Impreso de Licencias'!A44=\"\",\"\",'Impreso de Licencias'!$C$2)","v":""},{"$nulls":5},{"$f":"IF('Impreso de Licencias'!A44=\"\",\"\",PROPER((CELL(\"contenido\",'Impreso de Licencias'!E44))))","v":""}]
[null,{"$f":"IF('Impreso de Licencias'!A45=\"\",\"\",CELL(\"contenido\",'Impreso de Licencias'!A45))","v":""},{"$f":"IF('Impreso de Licencias'!A45=\"\",\"\",PROPER((CELL(\"contenido\",'Impreso de Licencias'!B45))))","v":""},{"$f":"IF('Impreso de Licencias'!A45=\"\",\"\",PROPER((CELL(\"contenido\",'Impreso de Licencias'!C45))))","v":""},{"$f":"IF('Impreso de Licencias'!A45=\"\",\"\",CELL(\"contenido\",'Impreso de Licencias'!D45))","v":""},"",{"$f":"IF(B40=\"\",\"\",IF('Impreso de Licencias'!T45>=18,\"Mayor\",IF('Impreso de Licencias'!T45>=14,\"Juvenil\",\"Infantil\")))","v":""},{"$f":"IF(B40=\"\",\"\",IF(MATCH(\"X\",'Impreso de Licencias'!I45:N45,0)=1,\"Básica A\",IF(MATCH(\"X\",'Impreso de Licencias'!I45:N45,0)=2,\"Básica B\",IF(MATCH(\"X\",'Impreso de Licencias'!I45:N45,0)=3,\"Básica B1\",IF(MATCH(\"X\",'Impreso de Licencias'!I45:N45,0)=4,\"Plus A\",IF(MATCH(\"X\",'Impreso de Licencias'!I45:N45,0)=5,\"Plus B\",IF(MATCH(\"X\",'Impreso de Licencias'!I45:N45,0)=6,\"Plus B1\")))))))","v":""},{"$f":"IF('Impreso de Licencias'!A45=\"\",\"\",PROPER((CELL(\"contenido\",'Impreso de Licencias'!F45))))","v":""},{"$f":"IF('Impreso de Licencias'!A45=\"\",\"\",CELL(\"contenido\",'Impreso de Licencias'!G45))","v":""},{"$f":"IF('Impreso de Licencias'!A45=\"\",\"\",PROPER((CELL(\"contenido\",'Impreso de Licencias'!H45))))","v":""},{"$f":"IF('Impreso de Licencias'!A45=\"\",\"\",'Impreso de Licencias'!$C$2)","v":""},{"$nulls":5},{"$f":"IF('Impreso de Licencias'!A45=\"\",\"\",PROPER((CELL(\"contenido\",'Impreso de Licencias'!E45))))","v":""}]
[null,{"$f":"IF('Impreso de Licencias'!A46=\"\",\"\",CELL(\"contenido\",'Impreso de Licencias'!A46))","v":""},{"$f":"IF('Impreso de Licencias'!A46=\"\",\"\",PROPER((CELL(\"contenido\",'Impreso de Licencias'!B46))))","v":""},{"$f":"IF('Impreso de Licencias'!A46=\"\",\"\",PROPER((CELL(\"contenido\",'Impreso de Licencias'!C46))))","v":""},{"$f":"IF('Impreso de Licencias'!A46=\"\",\"\",CELL(\"contenido\",'Impreso de Licencias'!D46))","v":""},"",{"$f":"IF(B41=\"\",\"\",IF('Impreso de Licencias'!T46>=18,\"Mayor\",IF('Impreso de Licencias'!T46>=14,\"Juvenil\",\"Infantil\")))","v":""},{"$f":"IF(B41=\"\",\"\",IF(MATCH(\"X\",'Impreso de Licencias'!I46:N46,0)=1,\"Básica A\",IF(MATCH(\"X\",'Impreso de Licencias'!I46:N46,0)=2,\"Básica B\",IF(MATCH(\"X\",'Impreso de Licencias'!I46:N46,0)=3,\"Básica B1\",IF(MATCH(\"X\",'Impreso de Licencias'!I46:N46,0)=4,\"Plus A\",IF(MATCH(\"X\",'Impreso de Licencias'!I46:N46,0)=5,\"Plus B\",IF(MATCH(\"X\",'Impreso de Licencias'!I46:N46,0)=6,\"Plus B1\")))))))","v":""},{"$f":"IF('Impreso de Licencias'!A46=\"\",\"\",PROPER((CELL(\"contenido\",'Impreso de Licencias'!F46))))","v":""},{"$f":"IF('Impreso de Licencias'!A46=\"\",\"\",CELL(\"contenido\",'Impreso de Licencias'!G46))","v":""},{"$f":"IF('Impreso de Licencias'!A46=\"\",\"\",PROPER((CELL(\"contenido\",'Impreso de Licencias'!H46))))","v":""},{"$f":"IF('Impreso de Licencias'!A46=\"\",\"\",'Impreso de Licencias'!$C$2)","v":""},{"$nulls":5},{"$f":"IF('Impreso de Licencias'!A46=\"\",\"\",PROPER((CELL(\"contenido\",'Impreso de Licencias'!E46))))","v":""}]
[null,{"$f":"IF('Impreso de Licencias'!A47=\"\",\"\",CELL(\"contenido\",'Impreso de Licencias'!A47))","v":""},{"$f":"IF('Impreso de Licencias'!A47=\"\",\"\",PROPER((CELL(\"contenido\",'Impreso de Licencias'!B47))))","v":""},{"$f":"IF('Impreso de Licencias'!A47=\"\",\"\",PROPER((CELL(\"contenido\",'Impreso de Licencias'!C47))))","v":""},{"$f":"IF('Impreso de Licencias'!A47=\"\",\"\",CELL(\"contenido\",'Impreso de Licencias'!D47))","v":""},"",{"$f":"IF(B42=\"\",\"\",IF('Impreso de Licencias'!T47>=18,\"Mayor\",IF('Impreso de Licencias'!T47>=14,\"Juvenil\",\"Infantil\")))","v":""},{"$f":"IF(B42=\"\",\"\",IF(MATCH(\"X\",'Impreso de Licencias'!I47:N47,0)=1,\"Básica A\",IF(MATCH(\"X\",'Impreso de Licencias'!I47:N47,0)=2,\"Básica B\",IF(MATCH(\"X\",'Impreso de Licencias'!I47:N47,0)=3,\"Básica B1\",IF(MATCH(\"X\",'Impreso de Licencias'!I47:N47,0)=4,\"Plus A\",IF(MATCH(\"X\",'Impreso de Licencias'!I47:N47,0)=5,\"Plus B\",IF(MATCH(\"X\",'Impreso de Licencias'!I47:N47,0)=6,\"Plus B1\")))))))","v":""},{"$f":"IF('Impreso de Licencias'!A47=\"\",\"\",PROPER((CELL(\"contenido\",'Impreso de Licencias'!F47))))","v":""},{"$f":"IF('Impreso de Licencias'!A47=\"\",\"\",CELL(\"contenido\",'Impreso de Licencias'!G47))","v":""},{"$f":"IF('Impreso de Licencias'!A47=\"\",\"\",PROPER((CELL(\"contenido\",'Impreso de Licencias'!H47))))","v":""},{"$f":"IF('Impreso de Licencias'!A47=\"\",\"\",'Impreso de Licencias'!$C$2)","v":""},{"$nulls":5},{"$f":"IF('Impreso de Licencias'!A47=\"\",\"\",PROPER((CELL(\"contenido\",'Impreso de Licencias'!E47))))","v":""}]
[null,{"$f":"IF('Impreso de Licencias'!A48=\"\",\"\",CELL(\"contenido\",'Impreso de Licencias'!A48))","v":""},{"$f":"IF('Impreso de Licencias'!A48=\"\",\"\",PROPER((CELL(\"contenido\",'Impreso de Licencias'!B48))))","v":""},{"$f":"IF('Impreso de Licencias'!A48=\"\",\"\",PROPER((CELL(\"contenido\",'Impreso de Licencias'!C48))))","v":""},{"$f":"IF('Impreso de Licencias'!A48=\"\",\"\",CELL(\"contenido\",'Impreso de Licencias'!D48))","v":""},"",{"$f":"IF(B43=\"\",\"\",IF('Impreso de Licencias'!T48>=18,\"Mayor\",IF('Impreso de Licencias'!T48>=14,\"Juvenil\",\"Infantil\")))","v":""},{"$f":"IF(B43=\"\",\"\",IF(MATCH(\"X\",'Impreso de Licencias'!I48:N48,0)=1,\"Básica A\",IF(MATCH(\"X\",'Impreso de Licencias'!I48:N48,0)=2,\"Básica B\",IF(MATCH(\"X\",'Impreso de Licencias'!I48:N48,0)=3,\"Básica B1\",IF(MATCH(\"X\",'Impreso de Licencias'!I48:N48,0)=4,\"Plus A\",IF(MATCH(\"X\",'Impreso de Licencias'!I48:N48,0)=5,\"Plus B\",IF(MATCH(\"X\",'Impreso de Licencias'!I48:N48,0)=6,\"Plus B1\")))))))","v":""},{"$f":"IF('Impreso de Licencias'!A48=\"\",\"\",PROPER((CELL(\"contenido\",'Impreso de Licencias'!F48))))","v":""},{"$f":"IF('Impreso de Licencias'!A48=\"\",\"\",CELL(\"contenido\",'Impreso de Licencias'!G48))","v":""},{"$f":"IF('Impreso de Licencias'!A48=\"\",\"\",PROPER((CELL(\"contenido\",'Impreso de Licencias'!H48))))","v":""},{"$f":"IF('Impreso de Licencias'!A48=\"\",\"\",'Impreso de Licencias'!$C$2)","v":""},{"$nulls":5},{"$f":"IF('Impreso de Licencias'!A48=\"\",\"\",PROPER((CELL(\"contenido\",'Impreso de Licencias'!E48))))","v":""}]
[null,{"$f":"IF('Impreso de Licencias'!A49=\"\",\"\",CELL(\"contenido\",'Impreso de Licencias'!A49))","v":""},{"$f":"IF('Impreso de Licencias'!A49=\"\",\"\",PROPER((CELL(\"contenido\",'Impreso de Licencias'!B49))))","v":""},{"$f":"IF('Impreso de Licencias'!A49=\"\",\"\",PROPER((CELL(\"contenido\",'Impreso de Licencias'!C49))))","v":""},{"$f":"IF('Impreso de Licencias'!A49=\"\",\"\",CELL(\"contenido\",'Impreso de Licencias'!D49))","v":""},"",{"$f":"IF(B44=\"\",\"\",IF('Impreso de Licencias'!T49>=18,\"Mayor\",IF('Impreso de Licencias'!T49>=14,\"Juvenil\",\"Infantil\")))","v":""},{"$f":"IF(B44=\"\",\"\",IF(MATCH(\"X\",'Impreso de Licencias'!I49:N49,0)=1,\"Básica A\",IF(MATCH(\"X\",'Impreso de Licencias'!I49:N49,0)=2,\"Básica B\",IF(MATCH(\"X\",'Impreso de Licencias'!I49:N49,0)=3,\"Básica B1\",IF(MATCH(\"X\",'Impreso de Licencias'!I49:N49,0)=4,\"Plus A\",IF(MATCH(\"X\",'Impreso de Licencias'!I49:N49,0)=5,\"Plus B\",IF(MATCH(\"X\",'Impreso de Licencias'!I49:N49,0)=6,\"Plus B1\")))))))","v":""},{"$f":"IF('Impreso de Licencias'!A49=\"\",\"\",PROPER((CELL(\"contenido\",'Impreso de Licencias'!F49))))","v":""},{"$f":"IF('Impreso de Licencias'!A49=\"\",\"\",CELL(\"contenido\",'Impreso de Licencias'!G49))","v":""},{"$f":"IF('Impreso de Licencias'!A49=\"\",\"\",PROPER((CELL(\"contenido\",'Impreso de Licencias'!H49))))","v":""},{"$f":"IF('Impreso de Licencias'!A49=\"\",\"\",'Impreso de Licencias'!$C$2)","v":""},{"$nulls":5},{"$f":"IF('Impreso de Licencias'!A49=\"\",\"\",PROPER((CELL(\"contenido\",'Impreso de Licencias'!E49))))","v":""}]
[null,{"$f":"IF('Impreso de Licencias'!A50=\"\",\"\",CELL(\"contenido\",'Impreso de Licencias'!A50))","v":""},{"$f":"IF('Impreso de Licencias'!A50=\"\",\"\",PROPER((CELL(\"contenido\",'Impreso de Licencias'!B50))))","v":""},{"$f":"IF('Impreso de Licencias'!A50=\"\",\"\",PROPER((CELL(\"contenido\",'Impreso de Licencias'!C50))))","v":""},{"$f":"IF('Impreso de Licencias'!A50=\"\",\"\",CELL(\"contenido\",'Impreso de Licencias'!D50))","v":""},"",{"$f":"IF(B45=\"\",\"\",IF('Impreso de Licencias'!T50>=18,\"Mayor\",IF('Impreso de Licencias'!T50>=14,\"Juvenil\",\"Infantil\")))","v":""},{"$f":"IF(B45=\"\",\"\",IF(MATCH(\"X\",'Impreso de Licencias'!I50:N50,0)=1,\"Básica A\",IF(MATCH(\"X\",'Impreso de Licencias'!I50:N50,0)=2,\"Básica B\",IF(MATCH(\"X\",'Impreso de Licencias'!I50:N50,0)=3,\"Básica B1\",IF(MATCH(\"X\",'Impreso de Licencias'!I50:N50,0)=4,\"Plus A\",IF(MATCH(\"X\",'Impreso de Licencias'!I50:N50,0)=5,\"Plus B\",IF(MATCH(\"X\",'Impreso de Licencias'!I50:N50,0)=6,\"Plus B1\")))))))","v":""},{"$f":"IF('Impreso de Licencias'!A50=\"\",\"\",PROPER((CELL(\"contenido\",'Impreso de Licencias'!F50))))","v":""},{"$f":"IF('Impreso de Licencias'!A50=\"\",\"\",CELL(\"contenido\",'Impreso de Licencias'!G50))","v":""},{"$f":"IF('Impreso de Licencias'!A50=\"\",\"\",PROPER((CELL(\"contenido\",'Impreso de Licencias'!H50))))","v":""},{"$f":"IF('Impreso de Licencias'!A50=\"\",\"\",'Impreso de Licencias'!$C$2)","v":""},{"$nulls":5},{"$f":"IF('Impreso de Licencias'!A50=\"\",\"\",PROPER((CELL(\"contenido\",'Impreso de Licencias'!E50))))","v":""}]
[null,{"$f":"IF('Impreso de Licencias'!A51=\"\",\"\",CELL(\"contenido\",'Impreso de Licencias'!A51))","v":""},{"$f":"IF('Impreso de Licencias'!A51=\"\",\"\",PROPER((CELL(\"contenido\",'Impreso de Licencias'!B51))))","v":""},{"$f":"IF('Impreso de Licencias'!A51=\"\",\"\",PROPER((CELL(\"contenido\",'Impreso de Licencias'!C51))))","v":""},{"$f":"IF('Impreso de Licencias'!A51=\"\",\"\",CELL(\"contenido\",'Impreso de Licencias'!D51))","v":""},"",{"$f":"IF(B46=\"\",\"\",IF('Impreso de Licencias'!T51>=18,\"Mayor\",IF('Impreso de Licencias'!T51>=14,\"Juvenil\",\"Infantil\")))","v":""},{"$f":"IF(B46=\"\",\"\",IF(MATCH(\"X\",'Impreso de Licencias'!I51:N51,0)=1,\"Básica A\",IF(MATCH(\"X\",'Impreso de Licencias'!I51:N51,0)=2,\"Básica B\",IF(MATCH(\"X\",'Impreso de Licencias'!I51:N51,0)=3,\"Básica B1\",IF(MATCH(\"X\",'Impreso de Licencias'!I51:N51,0)=4,\"Plus A\",IF(MATCH(\"X\",'Impreso de Licencias'!I51:N51,0)=5,\"Plus B\",IF(MATCH(\"X\",'Impreso de Licencias'!I51:N51,0)=6,\"Plus B1\")))))))","v":""},{"$f":"IF('Impreso de Licencias'!A51=\"\",\"\",PROPER((CELL(\"contenido\",'Impreso de Licencias'!F51))))","v":""},{"$f":"IF('Impreso de Licencias'!A51=\"\",\"\",CELL(\"contenido\",'Impreso de Licencias'!G51))","v":""},{"$f":"IF('Impreso de Licencias'!A51=\"\",\"\",PROPER((CELL(\"contenido\",'Impreso de Licencias'!H51))))","v":""},{"$f":"IF('Impreso de Licencias'!A51=\"\",\"\",'Impreso de Licencias'!$C$2)","v":""},{"$nulls":5},{"$f":"IF('Impreso de Licencias'!A51=\"\",\"\",PROPER((CELL(\"contenido\",'Impreso de Licencias'!E51))))","v":""}]